{"text_format":"1","workbook":"xlsx","n_sheets":5,"sheets":["الرئيسيه","بيانات الطلاب","المقبوضات","كشف حساب طالب دولار","كشف حساب طالب لبناني"],"not_rendered":{"charts":0,"images":0,"macros":1,"external_links":0,"defined_names":5,"comments":0,"pivot_tables":0},"unopened":[],"bounds":{"document_bytes":16777216,"sheet_cells":100000,"rows_first":2000,"rows_last":500,"rows_between":2000,"halvings":0,"cell_chars":16384,"cell_head_chars":4096},"cells_cut":0,"cells_raw":0,"read":"whole","date_system":"1900"}

{"sheet":"الرئيسيه","index":0,"n_rows":0,"n_cols":0,"rows_kept":0,"cut":false,"hidden":false,"merged":[]}

{"sheet":"بيانات الطلاب","index":1,"n_rows":116,"n_cols":21,"rows_kept":116,"cut":false,"hidden":false,"merged":[[0,0,0,11]]}
["بيانات الطلاب"]
["كود الطالب","إسم الطالب","الصف","الشعبة","القسط لبناني","مدين لبناني","دائن لبناني","الرصيد لبناني","القسط دولار","مدين دولار","دائن دولار","الرصيد دولار",null,null,null,null,null,null,null,"KG1","-"]
[{"$f":"\"STD\"&\"-\"&(ROW(A3)-2)","v":"STD-1"},"باسل محمد إبراهيم","Grade 1","-",10000000,{"$f":"SUMIFS(المقبوضات!$I:$I,المقبوضات!$E:$E,'بيانات الطلاب'!F$2,المقبوضات!$B:$B,'بيانات الطلاب'!$B3)","v":0},{"$f":"SUMIFS(المقبوضات!$I:$I,المقبوضات!$E:$E,'بيانات الطلاب'!G$2,المقبوضات!$B:$B,'بيانات الطلاب'!$B3)","v":3000000},{"$f":"Table1[[#This Row],[القسط لبناني]]+Table1[[#This Row],[مدين لبناني]]-Table1[[#This Row],[دائن لبناني]]","v":7000000},300,{"$f":"SUMIFS(المقبوضات!$I:$I,المقبوضات!$E:$E,'بيانات الطلاب'!J$2,المقبوضات!$B:$B,'بيانات الطلاب'!$B3)","v":0},{"$f":"SUMIFS(المقبوضات!$I:$I,المقبوضات!$E:$E,'بيانات الطلاب'!K$2,المقبوضات!$B:$B,'بيانات الطلاب'!$B3)","v":100},{"$f":"Table1[[#This Row],[القسط دولار]]+Table1[[#This Row],[مدين دولار]]-Table1[[#This Row],[دائن دولار]]","v":200},null,null,null,null,null,null,null,"KG2","A"]
["STD-2","تيا محمد إبراهيم","Grade 1","-",10000000,{"$f":"SUMIFS(المقبوضات!$I:$I,المقبوضات!$E:$E,'بيانات الطلاب'!F$2,المقبوضات!$B:$B,'بيانات الطلاب'!$B4)","v":0},{"$f":"SUMIFS(المقبوضات!$I:$I,المقبوضات!$E:$E,'بيانات الطلاب'!G$2,المقبوضات!$B:$B,'بيانات الطلاب'!$B4)","v":2000000},{"$f":"Table1[[#This Row],[القسط لبناني]]+Table1[[#This Row],[مدين لبناني]]-Table1[[#This Row],[دائن لبناني]]","v":8000000},300,{"$f":"SUMIFS(المقبوضات!$I:$I,المقبوضات!$E:$E,'بيانات الطلاب'!J$2,المقبوضات!$B:$B,'بيانات الطلاب'!$B4)","v":0},{"$f":"SUMIFS(المقبوضات!$I:$I,المقبوضات!$E:$E,'بيانات الطلاب'!K$2,المقبوضات!$B:$B,'بيانات الطلاب'!$B4)","v":200},{"$f":"Table1[[#This Row],[القسط دولار]]+Table1[[#This Row],[مدين دولار]]-Table1[[#This Row],[دائن دولار]]","v":100},null,null,null,null,null,null,null,"KG3","B"]
["STD-3",null,null,null,null,{"$f":"SUMIFS(المقبوضات!$I:$I,المقبوضات!$E:$E,'بيانات الطلاب'!F$2,المقبوضات!$B:$B,'بيانات الطلاب'!$B5)","v":0},{"$f":"SUMIFS(المقبوضات!$I:$I,المقبوضات!$E:$E,'بيانات الطلاب'!G$2,المقبوضات!$B:$B,'بيانات الطلاب'!$B5)","v":0},{"$f":"Table1[[#This Row],[القسط لبناني]]+Table1[[#This Row],[مدين لبناني]]-Table1[[#This Row],[دائن لبناني]]","v":0},null,{"$f":"SUMIFS(المقبوضات!$I:$I,المقبوضات!$E:$E,'بيانات الطلاب'!J$2,المقبوضات!$B:$B,'بيانات الطلاب'!$B5)","v":0},{"$f":"SUMIFS(المقبوضات!$I:$I,المقبوضات!$E:$E,'بيانات الطلاب'!K$2,المقبوضات!$B:$B,'بيانات الطلاب'!$B5)","v":0},{"$f":"Table1[[#This Row],[القسط دولار]]+Table1[[#This Row],[مدين دولار]]-Table1[[#This Row],[دائن دولار]]","v":0},null,null,null,null,null,null,null,"Grade 1"]
["STD-4",null,null,null,null,{"$f":"SUMIFS(المقبوضات!$I:$I,المقبوضات!$E:$E,'بيانات الطلاب'!F$2,المقبوضات!$B:$B,'بيانات الطلاب'!$B6)","v":0},{"$f":"SUMIFS(المقبوضات!$I:$I,المقبوضات!$E:$E,'بيانات الطلاب'!G$2,المقبوضات!$B:$B,'بيانات الطلاب'!$B6)","v":0},{"$f":"Table1[[#This Row],[القسط لبناني]]+Table1[[#This Row],[مدين لبناني]]-Table1[[#This Row],[دائن لبناني]]","v":0},null,{"$f":"SUMIFS(المقبوضات!$I:$I,المقبوضات!$E:$E,'بيانات الطلاب'!J$2,المقبوضات!$B:$B,'بيانات الطلاب'!$B6)","v":0},{"$f":"SUMIFS(المقبوضات!$I:$I,المقبوضات!$E:$E,'بيانات الطلاب'!K$2,المقبوضات!$B:$B,'بيانات الطلاب'!$B6)","v":0},{"$f":"Table1[[#This Row],[القسط دولار]]+Table1[[#This Row],[مدين دولار]]-Table1[[#This Row],[دائن دولار]]","v":0},null,null,null,null,null,null,null,"Grade 2"]
["STD-5",null,null,null,null,{"$f":"SUMIFS(المقبوضات!$I:$I,المقبوضات!$E:$E,'بيانات الطلاب'!F$2,المقبوضات!$B:$B,'بيانات الطلاب'!$B7)","v":0},{"$f":"SUMIFS(المقبوضات!$I:$I,المقبوضات!$E:$E,'بيانات الطلاب'!G$2,المقبوضات!$B:$B,'بيانات الطلاب'!$B7)","v":0},{"$f":"Table1[[#This Row],[القسط لبناني]]+Table1[[#This Row],[مدين لبناني]]-Table1[[#This Row],[دائن لبناني]]","v":0},null,{"$f":"SUMIFS(المقبوضات!$I:$I,المقبوضات!$E:$E,'بيانات الطلاب'!J$2,المقبوضات!$B:$B,'بيانات الطلاب'!$B7)","v":0},{"$f":"SUMIFS(المقبوضات!$I:$I,المقبوضات!$E:$E,'بيانات الطلاب'!K$2,المقبوضات!$B:$B,'بيانات الطلاب'!$B7)","v":0},{"$f":"Table1[[#This Row],[القسط دولار]]+Table1[[#This Row],[مدين دولار]]-Table1[[#This Row],[دائن دولار]]","v":0},null,null,null,null,null,null,null,"Grade 3"]
["STD-6",null,null,null,null,{"$f":"SUMIFS(المقبوضات!$I:$I,المقبوضات!$E:$E,'بيانات الطلاب'!F$2,المقبوضات!$B:$B,'بيانات الطلاب'!$B8)","v":0},{"$f":"SUMIFS(المقبوضات!$I:$I,المقبوضات!$E:$E,'بيانات الطلاب'!G$2,المقبوضات!$B:$B,'بيانات الطلاب'!$B8)","v":0},{"$f":"Table1[[#This Row],[القسط لبناني]]+Table1[[#This Row],[مدين لبناني]]-Table1[[#This Row],[دائن لبناني]]","v":0},null,{"$f":"SUMIFS(المقبوضات!$I:$I,المقبوضات!$E:$E,'بيانات الطلاب'!J$2,المقبوضات!$B:$B,'بيانات الطلاب'!$B8)","v":0},{"$f":"SUMIFS(المقبوضات!$I:$I,المقبوضات!$E:$E,'بيانات الطلاب'!K$2,المقبوضات!$B:$B,'بيانات الطلاب'!$B8)","v":0},{"$f":"Table1[[#This Row],[القسط دولار]]+Table1[[#This Row],[مدين دولار]]-Table1[[#This Row],[دائن دولار]]","v":0},null,null,null,null,null,null,null,"Grade 4"]
["STD-7",null,null,null,null,{"$f":"SUMIFS(المقبوضات!$I:$I,المقبوضات!$E:$E,'بيانات الطلاب'!F$2,المقبوضات!$B:$B,'بيانات الطلاب'!$B9)","v":0},{"$f":"SUMIFS(المقبوضات!$I:$I,المقبوضات!$E:$E,'بيانات الطلاب'!G$2,المقبوضات!$B:$B,'بيانات الطلاب'!$B9)","v":0},{"$f":"Table1[[#This Row],[القسط لبناني]]+Table1[[#This Row],[مدين لبناني]]-Table1[[#This Row],[دائن لبناني]]","v":0},null,{"$f":"SUMIFS(المقبوضات!$I:$I,المقبوضات!$E:$E,'بيانات الطلاب'!J$2,المقبوضات!$B:$B,'بيانات الطلاب'!$B9)","v":0},{"$f":"SUMIFS(المقبوضات!$I:$I,المقبوضات!$E:$E,'بيانات الطلاب'!K$2,المقبوضات!$B:$B,'بيانات الطلاب'!$B9)","v":0},{"$f":"Table1[[#This Row],[القسط دولار]]+Table1[[#This Row],[مدين دولار]]-Table1[[#This Row],[دائن دولار]]","v":0},null,null,null,null,null,null,null,"Grade 5"]
["STD-8",null,null,null,null,{"$f":"SUMIFS(المقبوضات!$I:$I,المقبوضات!$E:$E,'بيانات الطلاب'!F$2,المقبوضات!$B:$B,'بيانات الطلاب'!$B10)","v":0},{"$f":"SUMIFS(المقبوضات!$I:$I,المقبوضات!$E:$E,'بيانات الطلاب'!G$2,المقبوضات!$B:$B,'بيانات الطلاب'!$B10)","v":0},{"$f":"Table1[[#This Row],[القسط لبناني]]+Table1[[#This Row],[مدين لبناني]]-Table1[[#This Row],[دائن لبناني]]","v":0},null,{"$f":"SUMIFS(المقبوضات!$I:$I,المقبوضات!$E:$E,'بيانات الطلاب'!J$2,المقبوضات!$B:$B,'بيانات الطلاب'!$B10)","v":0},{"$f":"SUMIFS(المقبوضات!$I:$I,المقبوضات!$E:$E,'بيانات الطلاب'!K$2,المقبوضات!$B:$B,'بيانات الطلاب'!$B10)","v":0},{"$f":"Table1[[#This Row],[القسط دولار]]+Table1[[#This Row],[مدين دولار]]-Table1[[#This Row],[دائن دولار]]","v":0},null,null,null,null,null,null,null,"Grade 6"]
["STD-9",null,null,null,null,{"$f":"SUMIFS(المقبوضات!$I:$I,المقبوضات!$E:$E,'بيانات الطلاب'!F$2,المقبوضات!$B:$B,'بيانات الطلاب'!$B11)","v":0},{"$f":"SUMIFS(المقبوضات!$I:$I,المقبوضات!$E:$E,'بيانات الطلاب'!G$2,المقبوضات!$B:$B,'بيانات الطلاب'!$B11)","v":0},{"$f":"Table1[[#This Row],[القسط لبناني]]+Table1[[#This Row],[مدين لبناني]]-Table1[[#This Row],[دائن لبناني]]","v":0},null,{"$f":"SUMIFS(المقبوضات!$I:$I,المقبوضات!$E:$E,'بيانات الطلاب'!J$2,المقبوضات!$B:$B,'بيانات الطلاب'!$B11)","v":0},{"$f":"SUMIFS(المقبوضات!$I:$I,المقبوضات!$E:$E,'بيانات الطلاب'!K$2,المقبوضات!$B:$B,'بيانات الطلاب'!$B11)","v":0},{"$f":"Table1[[#This Row],[القسط دولار]]+Table1[[#This Row],[مدين دولار]]-Table1[[#This Row],[دائن دولار]]","v":0}]
["STD-10",null,null,null,null,{"$f":"SUMIFS(المقبوضات!$I:$I,المقبوضات!$E:$E,'بيانات الطلاب'!F$2,المقبوضات!$B:$B,'بيانات الطلاب'!$B12)","v":0},{"$f":"SUMIFS(المقبوضات!$I:$I,المقبوضات!$E:$E,'بيانات الطلاب'!G$2,المقبوضات!$B:$B,'بيانات الطلاب'!$B12)","v":0},{"$f":"Table1[[#This Row],[القسط لبناني]]+Table1[[#This Row],[مدين لبناني]]-Table1[[#This Row],[دائن لبناني]]","v":0},null,{"$f":"SUMIFS(المقبوضات!$I:$I,المقبوضات!$E:$E,'بيانات الطلاب'!J$2,المقبوضات!$B:$B,'بيانات الطلاب'!$B12)","v":0},{"$f":"SUMIFS(المقبوضات!$I:$I,المقبوضات!$E:$E,'بيانات الطلاب'!K$2,المقبوضات!$B:$B,'بيانات الطلاب'!$B12)","v":0},{"$f":"Table1[[#This Row],[القسط دولار]]+Table1[[#This Row],[مدين دولار]]-Table1[[#This Row],[دائن دولار]]","v":0}]
["STD-11",null,null,null,null,{"$f":"SUMIFS(المقبوضات!$I:$I,المقبوضات!$E:$E,'بيانات الطلاب'!F$2,المقبوضات!$B:$B,'بيانات الطلاب'!$B13)","v":0},{"$f":"SUMIFS(المقبوضات!$I:$I,المقبوضات!$E:$E,'بيانات الطلاب'!G$2,المقبوضات!$B:$B,'بيانات الطلاب'!$B13)","v":0},{"$f":"Table1[[#This Row],[القسط لبناني]]+Table1[[#This Row],[مدين لبناني]]-Table1[[#This Row],[دائن لبناني]]","v":0},null,{"$f":"SUMIFS(المقبوضات!$I:$I,المقبوضات!$E:$E,'بيانات الطلاب'!J$2,المقبوضات!$B:$B,'بيانات الطلاب'!$B13)","v":0},{"$f":"SUMIFS(المقبوضات!$I:$I,المقبوضات!$E:$E,'بيانات الطلاب'!K$2,المقبوضات!$B:$B,'بيانات الطلاب'!$B13)","v":0},{"$f":"Table1[[#This Row],[القسط دولار]]+Table1[[#This Row],[مدين دولار]]-Table1[[#This Row],[دائن دولار]]","v":0}]
["STD-12",null,null,null,null,{"$f":"SUMIFS(المقبوضات!$I:$I,المقبوضات!$E:$E,'بيانات الطلاب'!F$2,المقبوضات!$B:$B,'بيانات الطلاب'!$B14)","v":0},{"$f":"SUMIFS(المقبوضات!$I:$I,المقبوضات!$E:$E,'بيانات الطلاب'!G$2,المقبوضات!$B:$B,'بيانات الطلاب'!$B14)","v":0},{"$f":"Table1[[#This Row],[القسط لبناني]]+Table1[[#This Row],[مدين لبناني]]-Table1[[#This Row],[دائن لبناني]]","v":0},null,{"$f":"SUMIFS(المقبوضات!$I:$I,المقبوضات!$E:$E,'بيانات الطلاب'!J$2,المقبوضات!$B:$B,'بيانات الطلاب'!$B14)","v":0},{"$f":"SUMIFS(المقبوضات!$I:$I,المقبوضات!$E:$E,'بيانات الطلاب'!K$2,المقبوضات!$B:$B,'بيانات الطلاب'!$B14)","v":0},{"$f":"Table1[[#This Row],[القسط دولار]]+Table1[[#This Row],[مدين دولار]]-Table1[[#This Row],[دائن دولار]]","v":0}]
["STD-13",null,null,null,null,{"$f":"SUMIFS(المقبوضات!$I:$I,المقبوضات!$E:$E,'بيانات الطلاب'!F$2,المقبوضات!$B:$B,'بيانات الطلاب'!$B15)","v":0},{"$f":"SUMIFS(المقبوضات!$I:$I,المقبوضات!$E:$E,'بيانات الطلاب'!G$2,المقبوضات!$B:$B,'بيانات الطلاب'!$B15)","v":0},{"$f":"Table1[[#This Row],[القسط لبناني]]+Table1[[#This Row],[مدين لبناني]]-Table1[[#This Row],[دائن لبناني]]","v":0},null,{"$f":"SUMIFS(المقبوضات!$I:$I,المقبوضات!$E:$E,'بيانات الطلاب'!J$2,المقبوضات!$B:$B,'بيانات الطلاب'!$B15)","v":0},{"$f":"SUMIFS(المقبوضات!$I:$I,المقبوضات!$E:$E,'بيانات الطلاب'!K$2,المقبوضات!$B:$B,'بيانات الطلاب'!$B15)","v":0},{"$f":"Table1[[#This Row],[القسط دولار]]+Table1[[#This Row],[مدين دولار]]-Table1[[#This Row],[دائن دولار]]","v":0}]
["STD-14",null,null,null,null,{"$f":"SUMIFS(المقبوضات!$I:$I,المقبوضات!$E:$E,'بيانات الطلاب'!F$2,المقبوضات!$B:$B,'بيانات الطلاب'!$B16)","v":0},{"$f":"SUMIFS(المقبوضات!$I:$I,المقبوضات!$E:$E,'بيانات الطلاب'!G$2,المقبوضات!$B:$B,'بيانات الطلاب'!$B16)","v":0},{"$f":"Table1[[#This Row],[القسط لبناني]]+Table1[[#This Row],[مدين لبناني]]-Table1[[#This Row],[دائن لبناني]]","v":0},null,{"$f":"SUMIFS(المقبوضات!$I:$I,المقبوضات!$E:$E,'بيانات الطلاب'!J$2,المقبوضات!$B:$B,'بيانات الطلاب'!$B16)","v":0},{"$f":"SUMIFS(المقبوضات!$I:$I,المقبوضات!$E:$E,'بيانات الطلاب'!K$2,المقبوضات!$B:$B,'بيانات الطلاب'!$B16)","v":0},{"$f":"Table1[[#This Row],[القسط دولار]]+Table1[[#This Row],[مدين دولار]]-Table1[[#This Row],[دائن دولار]]","v":0}]
["STD-15",null,null,null,null,{"$f":"SUMIFS(المقبوضات!$I:$I,المقبوضات!$E:$E,'بيانات الطلاب'!F$2,المقبوضات!$B:$B,'بيانات الطلاب'!$B17)","v":0},{"$f":"SUMIFS(المقبوضات!$I:$I,المقبوضات!$E:$E,'بيانات الطلاب'!G$2,المقبوضات!$B:$B,'بيانات الطلاب'!$B17)","v":0},{"$f":"Table1[[#This Row],[القسط لبناني]]+Table1[[#This Row],[مدين لبناني]]-Table1[[#This Row],[دائن لبناني]]","v":0},null,{"$f":"SUMIFS(المقبوضات!$I:$I,المقبوضات!$E:$E,'بيانات الطلاب'!J$2,المقبوضات!$B:$B,'بيانات الطلاب'!$B17)","v":0},{"$f":"SUMIFS(المقبوضات!$I:$I,المقبوضات!$E:$E,'بيانات الطلاب'!K$2,المقبوضات!$B:$B,'بيانات الطلاب'!$B17)","v":0},{"$f":"Table1[[#This Row],[القسط دولار]]+Table1[[#This Row],[مدين دولار]]-Table1[[#This Row],[دائن دولار]]","v":0}]
["STD-16",null,null,null,null,{"$f":"SUMIFS(المقبوضات!$I:$I,المقبوضات!$E:$E,'بيانات الطلاب'!F$2,المقبوضات!$B:$B,'بيانات الطلاب'!$B18)","v":0},{"$f":"SUMIFS(المقبوضات!$I:$I,المقبوضات!$E:$E,'بيانات الطلاب'!G$2,المقبوضات!$B:$B,'بيانات الطلاب'!$B18)","v":0},{"$f":"Table1[[#This Row],[القسط لبناني]]+Table1[[#This Row],[مدين لبناني]]-Table1[[#This Row],[دائن لبناني]]","v":0},null,{"$f":"SUMIFS(المقبوضات!$I:$I,المقبوضات!$E:$E,'بيانات الطلاب'!J$2,المقبوضات!$B:$B,'بيانات الطلاب'!$B18)","v":0},{"$f":"SUMIFS(المقبوضات!$I:$I,المقبوضات!$E:$E,'بيانات الطلاب'!K$2,المقبوضات!$B:$B,'بيانات الطلاب'!$B18)","v":0},{"$f":"Table1[[#This Row],[القسط دولار]]+Table1[[#This Row],[مدين دولار]]-Table1[[#This Row],[دائن دولار]]","v":0}]
["STD-17",null,null,null,null,{"$f":"SUMIFS(المقبوضات!$I:$I,المقبوضات!$E:$E,'بيانات الطلاب'!F$2,المقبوضات!$B:$B,'بيانات الطلاب'!$B19)","v":0},{"$f":"SUMIFS(المقبوضات!$I:$I,المقبوضات!$E:$E,'بيانات الطلاب'!G$2,المقبوضات!$B:$B,'بيانات الطلاب'!$B19)","v":0},{"$f":"Table1[[#This Row],[القسط لبناني]]+Table1[[#This Row],[مدين لبناني]]-Table1[[#This Row],[دائن لبناني]]","v":0},null,{"$f":"SUMIFS(المقبوضات!$I:$I,المقبوضات!$E:$E,'بيانات الطلاب'!J$2,المقبوضات!$B:$B,'بيانات الطلاب'!$B19)","v":0},{"$f":"SUMIFS(المقبوضات!$I:$I,المقبوضات!$E:$E,'بيانات الطلاب'!K$2,المقبوضات!$B:$B,'بيانات الطلاب'!$B19)","v":0},{"$f":"Table1[[#This Row],[القسط دولار]]+Table1[[#This Row],[مدين دولار]]-Table1[[#This Row],[دائن دولار]]","v":0}]
["STD-18",null,null,null,null,{"$f":"SUMIFS(المقبوضات!$I:$I,المقبوضات!$E:$E,'بيانات الطلاب'!F$2,المقبوضات!$B:$B,'بيانات الطلاب'!$B20)","v":0},{"$f":"SUMIFS(المقبوضات!$I:$I,المقبوضات!$E:$E,'بيانات الطلاب'!G$2,المقبوضات!$B:$B,'بيانات الطلاب'!$B20)","v":0},{"$f":"Table1[[#This Row],[القسط لبناني]]+Table1[[#This Row],[مدين لبناني]]-Table1[[#This Row],[دائن لبناني]]","v":0},null,{"$f":"SUMIFS(المقبوضات!$I:$I,المقبوضات!$E:$E,'بيانات الطلاب'!J$2,المقبوضات!$B:$B,'بيانات الطلاب'!$B20)","v":0},{"$f":"SUMIFS(المقبوضات!$I:$I,المقبوضات!$E:$E,'بيانات الطلاب'!K$2,المقبوضات!$B:$B,'بيانات الطلاب'!$B20)","v":0},{"$f":"Table1[[#This Row],[القسط دولار]]+Table1[[#This Row],[مدين دولار]]-Table1[[#This Row],[دائن دولار]]","v":0}]
["STD-19",null,null,null,null,{"$f":"SUMIFS(المقبوضات!$I:$I,المقبوضات!$E:$E,'بيانات الطلاب'!F$2,المقبوضات!$B:$B,'بيانات الطلاب'!$B21)","v":0},{"$f":"SUMIFS(المقبوضات!$I:$I,المقبوضات!$E:$E,'بيانات الطلاب'!G$2,المقبوضات!$B:$B,'بيانات الطلاب'!$B21)","v":0},{"$f":"Table1[[#This Row],[القسط لبناني]]+Table1[[#This Row],[مدين لبناني]]-Table1[[#This Row],[دائن لبناني]]","v":0},null,{"$f":"SUMIFS(المقبوضات!$I:$I,المقبوضات!$E:$E,'بيانات الطلاب'!J$2,المقبوضات!$B:$B,'بيانات الطلاب'!$B21)","v":0},{"$f":"SUMIFS(المقبوضات!$I:$I,المقبوضات!$E:$E,'بيانات الطلاب'!K$2,المقبوضات!$B:$B,'بيانات الطلاب'!$B21)","v":0},{"$f":"Table1[[#This Row],[القسط دولار]]+Table1[[#This Row],[مدين دولار]]-Table1[[#This Row],[دائن دولار]]","v":0}]
["STD-20",null,null,null,null,{"$f":"SUMIFS(المقبوضات!$I:$I,المقبوضات!$E:$E,'بيانات الطلاب'!F$2,المقبوضات!$B:$B,'بيانات الطلاب'!$B22)","v":0},{"$f":"SUMIFS(المقبوضات!$I:$I,المقبوضات!$E:$E,'بيانات الطلاب'!G$2,المقبوضات!$B:$B,'بيانات الطلاب'!$B22)","v":0},{"$f":"Table1[[#This Row],[القسط لبناني]]+Table1[[#This Row],[مدين لبناني]]-Table1[[#This Row],[دائن لبناني]]","v":0},null,{"$f":"SUMIFS(المقبوضات!$I:$I,المقبوضات!$E:$E,'بيانات الطلاب'!J$2,المقبوضات!$B:$B,'بيانات الطلاب'!$B22)","v":0},{"$f":"SUMIFS(المقبوضات!$I:$I,المقبوضات!$E:$E,'بيانات الطلاب'!K$2,المقبوضات!$B:$B,'بيانات الطلاب'!$B22)","v":0},{"$f":"Table1[[#This Row],[القسط دولار]]+Table1[[#This Row],[مدين دولار]]-Table1[[#This Row],[دائن دولار]]","v":0}]
["STD-21",null,null,null,null,{"$f":"SUMIFS(المقبوضات!$I:$I,المقبوضات!$E:$E,'بيانات الطلاب'!F$2,المقبوضات!$B:$B,'بيانات الطلاب'!$B23)","v":0},{"$f":"SUMIFS(المقبوضات!$I:$I,المقبوضات!$E:$E,'بيانات الطلاب'!G$2,المقبوضات!$B:$B,'بيانات الطلاب'!$B23)","v":0},{"$f":"Table1[[#This Row],[القسط لبناني]]+Table1[[#This Row],[مدين لبناني]]-Table1[[#This Row],[دائن لبناني]]","v":0},null,{"$f":"SUMIFS(المقبوضات!$I:$I,المقبوضات!$E:$E,'بيانات الطلاب'!J$2,المقبوضات!$B:$B,'بيانات الطلاب'!$B23)","v":0},{"$f":"SUMIFS(المقبوضات!$I:$I,المقبوضات!$E:$E,'بيانات الطلاب'!K$2,المقبوضات!$B:$B,'بيانات الطلاب'!$B23)","v":0},{"$f":"Table1[[#This Row],[القسط دولار]]+Table1[[#This Row],[مدين دولار]]-Table1[[#This Row],[دائن دولار]]","v":0}]
["STD-22",null,null,null,null,{"$f":"SUMIFS(المقبوضات!$I:$I,المقبوضات!$E:$E,'بيانات الطلاب'!F$2,المقبوضات!$B:$B,'بيانات الطلاب'!$B24)","v":0},{"$f":"SUMIFS(المقبوضات!$I:$I,المقبوضات!$E:$E,'بيانات الطلاب'!G$2,المقبوضات!$B:$B,'بيانات الطلاب'!$B24)","v":0},{"$f":"Table1[[#This Row],[القسط لبناني]]+Table1[[#This Row],[مدين لبناني]]-Table1[[#This Row],[دائن لبناني]]","v":0},null,{"$f":"SUMIFS(المقبوضات!$I:$I,المقبوضات!$E:$E,'بيانات الطلاب'!J$2,المقبوضات!$B:$B,'بيانات الطلاب'!$B24)","v":0},{"$f":"SUMIFS(المقبوضات!$I:$I,المقبوضات!$E:$E,'بيانات الطلاب'!K$2,المقبوضات!$B:$B,'بيانات الطلاب'!$B24)","v":0},{"$f":"Table1[[#This Row],[القسط دولار]]+Table1[[#This Row],[مدين دولار]]-Table1[[#This Row],[دائن دولار]]","v":0}]
["STD-23",null,null,null,null,{"$f":"SUMIFS(المقبوضات!$I:$I,المقبوضات!$E:$E,'بيانات الطلاب'!F$2,المقبوضات!$B:$B,'بيانات الطلاب'!$B25)","v":0},{"$f":"SUMIFS(المقبوضات!$I:$I,المقبوضات!$E:$E,'بيانات الطلاب'!G$2,المقبوضات!$B:$B,'بيانات الطلاب'!$B25)","v":0},{"$f":"Table1[[#This Row],[القسط لبناني]]+Table1[[#This Row],[مدين لبناني]]-Table1[[#This Row],[دائن لبناني]]","v":0},null,{"$f":"SUMIFS(المقبوضات!$I:$I,المقبوضات!$E:$E,'بيانات الطلاب'!J$2,المقبوضات!$B:$B,'بيانات الطلاب'!$B25)","v":0},{"$f":"SUMIFS(المقبوضات!$I:$I,المقبوضات!$E:$E,'بيانات الطلاب'!K$2,المقبوضات!$B:$B,'بيانات الطلاب'!$B25)","v":0},{"$f":"Table1[[#This Row],[القسط دولار]]+Table1[[#This Row],[مدين دولار]]-Table1[[#This Row],[دائن دولار]]","v":0}]
["STD-24",null,null,null,null,{"$f":"SUMIFS(المقبوضات!$I:$I,المقبوضات!$E:$E,'بيانات الطلاب'!F$2,المقبوضات!$B:$B,'بيانات الطلاب'!$B26)","v":0},{"$f":"SUMIFS(المقبوضات!$I:$I,المقبوضات!$E:$E,'بيانات الطلاب'!G$2,المقبوضات!$B:$B,'بيانات الطلاب'!$B26)","v":0},{"$f":"Table1[[#This Row],[القسط لبناني]]+Table1[[#This Row],[مدين لبناني]]-Table1[[#This Row],[دائن لبناني]]","v":0},null,{"$f":"SUMIFS(المقبوضات!$I:$I,المقبوضات!$E:$E,'بيانات الطلاب'!J$2,المقبوضات!$B:$B,'بيانات الطلاب'!$B26)","v":0},{"$f":"SUMIFS(المقبوضات!$I:$I,المقبوضات!$E:$E,'بيانات الطلاب'!K$2,المقبوضات!$B:$B,'بيانات الطلاب'!$B26)","v":0},{"$f":"Table1[[#This Row],[القسط دولار]]+Table1[[#This Row],[مدين دولار]]-Table1[[#This Row],[دائن دولار]]","v":0}]
["STD-25",null,null,null,null,{"$f":"SUMIFS(المقبوضات!$I:$I,المقبوضات!$E:$E,'بيانات الطلاب'!F$2,المقبوضات!$B:$B,'بيانات الطلاب'!$B27)","v":0},{"$f":"SUMIFS(المقبوضات!$I:$I,المقبوضات!$E:$E,'بيانات الطلاب'!G$2,المقبوضات!$B:$B,'بيانات الطلاب'!$B27)","v":0},{"$f":"Table1[[#This Row],[القسط لبناني]]+Table1[[#This Row],[مدين لبناني]]-Table1[[#This Row],[دائن لبناني]]","v":0},null,{"$f":"SUMIFS(المقبوضات!$I:$I,المقبوضات!$E:$E,'بيانات الطلاب'!J$2,المقبوضات!$B:$B,'بيانات الطلاب'!$B27)","v":0},{"$f":"SUMIFS(المقبوضات!$I:$I,المقبوضات!$E:$E,'بيانات الطلاب'!K$2,المقبوضات!$B:$B,'بيانات الطلاب'!$B27)","v":0},{"$f":"Table1[[#This Row],[القسط دولار]]+Table1[[#This Row],[مدين دولار]]-Table1[[#This Row],[دائن دولار]]","v":0}]
["STD-26",null,null,null,null,{"$f":"SUMIFS(المقبوضات!$I:$I,المقبوضات!$E:$E,'بيانات الطلاب'!F$2,المقبوضات!$B:$B,'بيانات الطلاب'!$B28)","v":0},{"$f":"SUMIFS(المقبوضات!$I:$I,المقبوضات!$E:$E,'بيانات الطلاب'!G$2,المقبوضات!$B:$B,'بيانات الطلاب'!$B28)","v":0},{"$f":"Table1[[#This Row],[القسط لبناني]]+Table1[[#This Row],[مدين لبناني]]-Table1[[#This Row],[دائن لبناني]]","v":0},null,{"$f":"SUMIFS(المقبوضات!$I:$I,المقبوضات!$E:$E,'بيانات الطلاب'!J$2,المقبوضات!$B:$B,'بيانات الطلاب'!$B28)","v":0},{"$f":"SUMIFS(المقبوضات!$I:$I,المقبوضات!$E:$E,'بيانات الطلاب'!K$2,المقبوضات!$B:$B,'بيانات الطلاب'!$B28)","v":0},{"$f":"Table1[[#This Row],[القسط دولار]]+Table1[[#This Row],[مدين دولار]]-Table1[[#This Row],[دائن دولار]]","v":0}]
["STD-27",null,null,null,null,{"$f":"SUMIFS(المقبوضات!$I:$I,المقبوضات!$E:$E,'بيانات الطلاب'!F$2,المقبوضات!$B:$B,'بيانات الطلاب'!$B29)","v":0},{"$f":"SUMIFS(المقبوضات!$I:$I,المقبوضات!$E:$E,'بيانات الطلاب'!G$2,المقبوضات!$B:$B,'بيانات الطلاب'!$B29)","v":0},{"$f":"Table1[[#This Row],[القسط لبناني]]+Table1[[#This Row],[مدين لبناني]]-Table1[[#This Row],[دائن لبناني]]","v":0},null,{"$f":"SUMIFS(المقبوضات!$I:$I,المقبوضات!$E:$E,'بيانات الطلاب'!J$2,المقبوضات!$B:$B,'بيانات الطلاب'!$B29)","v":0},{"$f":"SUMIFS(المقبوضات!$I:$I,المقبوضات!$E:$E,'بيانات الطلاب'!K$2,المقبوضات!$B:$B,'بيانات الطلاب'!$B29)","v":0},{"$f":"Table1[[#This Row],[القسط دولار]]+Table1[[#This Row],[مدين دولار]]-Table1[[#This Row],[دائن دولار]]","v":0}]
["STD-28",null,null,null,null,{"$f":"SUMIFS(المقبوضات!$I:$I,المقبوضات!$E:$E,'بيانات الطلاب'!F$2,المقبوضات!$B:$B,'بيانات الطلاب'!$B30)","v":0},{"$f":"SUMIFS(المقبوضات!$I:$I,المقبوضات!$E:$E,'بيانات الطلاب'!G$2,المقبوضات!$B:$B,'بيانات الطلاب'!$B30)","v":0},{"$f":"Table1[[#This Row],[القسط لبناني]]+Table1[[#This Row],[مدين لبناني]]-Table1[[#This Row],[دائن لبناني]]","v":0},null,{"$f":"SUMIFS(المقبوضات!$I:$I,المقبوضات!$E:$E,'بيانات الطلاب'!J$2,المقبوضات!$B:$B,'بيانات الطلاب'!$B30)","v":0},{"$f":"SUMIFS(المقبوضات!$I:$I,المقبوضات!$E:$E,'بيانات الطلاب'!K$2,المقبوضات!$B:$B,'بيانات الطلاب'!$B30)","v":0},{"$f":"Table1[[#This Row],[القسط دولار]]+Table1[[#This Row],[مدين دولار]]-Table1[[#This Row],[دائن دولار]]","v":0}]
["STD-29",null,null,null,null,{"$f":"SUMIFS(المقبوضات!$I:$I,المقبوضات!$E:$E,'بيانات الطلاب'!F$2,المقبوضات!$B:$B,'بيانات الطلاب'!$B31)","v":0},{"$f":"SUMIFS(المقبوضات!$I:$I,المقبوضات!$E:$E,'بيانات الطلاب'!G$2,المقبوضات!$B:$B,'بيانات الطلاب'!$B31)","v":0},{"$f":"Table1[[#This Row],[القسط لبناني]]+Table1[[#This Row],[مدين لبناني]]-Table1[[#This Row],[دائن لبناني]]","v":0},null,{"$f":"SUMIFS(المقبوضات!$I:$I,المقبوضات!$E:$E,'بيانات الطلاب'!J$2,المقبوضات!$B:$B,'بيانات الطلاب'!$B31)","v":0},{"$f":"SUMIFS(المقبوضات!$I:$I,المقبوضات!$E:$E,'بيانات الطلاب'!K$2,المقبوضات!$B:$B,'بيانات الطلاب'!$B31)","v":0},{"$f":"Table1[[#This Row],[القسط دولار]]+Table1[[#This Row],[مدين دولار]]-Table1[[#This Row],[دائن دولار]]","v":0}]
["STD-30",null,null,null,null,{"$f":"SUMIFS(المقبوضات!$I:$I,المقبوضات!$E:$E,'بيانات الطلاب'!F$2,المقبوضات!$B:$B,'بيانات الطلاب'!$B32)","v":0},{"$f":"SUMIFS(المقبوضات!$I:$I,المقبوضات!$E:$E,'بيانات الطلاب'!G$2,المقبوضات!$B:$B,'بيانات الطلاب'!$B32)","v":0},{"$f":"Table1[[#This Row],[القسط لبناني]]+Table1[[#This Row],[مدين لبناني]]-Table1[[#This Row],[دائن لبناني]]","v":0},null,{"$f":"SUMIFS(المقبوضات!$I:$I,المقبوضات!$E:$E,'بيانات الطلاب'!J$2,المقبوضات!$B:$B,'بيانات الطلاب'!$B32)","v":0},{"$f":"SUMIFS(المقبوضات!$I:$I,المقبوضات!$E:$E,'بيانات الطلاب'!K$2,المقبوضات!$B:$B,'بيانات الطلاب'!$B32)","v":0},{"$f":"Table1[[#This Row],[القسط دولار]]+Table1[[#This Row],[مدين دولار]]-Table1[[#This Row],[دائن دولار]]","v":0}]
["STD-31",null,null,null,null,{"$f":"SUMIFS(المقبوضات!$I:$I,المقبوضات!$E:$E,'بيانات الطلاب'!F$2,المقبوضات!$B:$B,'بيانات الطلاب'!$B33)","v":0},{"$f":"SUMIFS(المقبوضات!$I:$I,المقبوضات!$E:$E,'بيانات الطلاب'!G$2,المقبوضات!$B:$B,'بيانات الطلاب'!$B33)","v":0},{"$f":"Table1[[#This Row],[القسط لبناني]]+Table1[[#This Row],[مدين لبناني]]-Table1[[#This Row],[دائن لبناني]]","v":0},null,{"$f":"SUMIFS(المقبوضات!$I:$I,المقبوضات!$E:$E,'بيانات الطلاب'!J$2,المقبوضات!$B:$B,'بيانات الطلاب'!$B33)","v":0},{"$f":"SUMIFS(المقبوضات!$I:$I,المقبوضات!$E:$E,'بيانات الطلاب'!K$2,المقبوضات!$B:$B,'بيانات الطلاب'!$B33)","v":0},{"$f":"Table1[[#This Row],[القسط دولار]]+Table1[[#This Row],[مدين دولار]]-Table1[[#This Row],[دائن دولار]]","v":0}]
["STD-32",null,null,null,null,{"$f":"SUMIFS(المقبوضات!$I:$I,المقبوضات!$E:$E,'بيانات الطلاب'!F$2,المقبوضات!$B:$B,'بيانات الطلاب'!$B34)","v":0},{"$f":"SUMIFS(المقبوضات!$I:$I,المقبوضات!$E:$E,'بيانات الطلاب'!G$2,المقبوضات!$B:$B,'بيانات الطلاب'!$B34)","v":0},{"$f":"Table1[[#This Row],[القسط لبناني]]+Table1[[#This Row],[مدين لبناني]]-Table1[[#This Row],[دائن لبناني]]","v":0},null,{"$f":"SUMIFS(المقبوضات!$I:$I,المقبوضات!$E:$E,'بيانات الطلاب'!J$2,المقبوضات!$B:$B,'بيانات الطلاب'!$B34)","v":0},{"$f":"SUMIFS(المقبوضات!$I:$I,المقبوضات!$E:$E,'بيانات الطلاب'!K$2,المقبوضات!$B:$B,'بيانات الطلاب'!$B34)","v":0},{"$f":"Table1[[#This Row],[القسط دولار]]+Table1[[#This Row],[مدين دولار]]-Table1[[#This Row],[دائن دولار]]","v":0}]
[{"$f":"\"STD\"&\"-\"&(ROW(A35)-2)","v":"STD-33"},null,null,null,null,{"$f":"SUMIFS(المقبوضات!$I:$I,المقبوضات!$E:$E,'بيانات الطلاب'!F$2,المقبوضات!$B:$B,'بيانات الطلاب'!$B35)","v":0},{"$f":"SUMIFS(المقبوضات!$I:$I,المقبوضات!$E:$E,'بيانات الطلاب'!G$2,المقبوضات!$B:$B,'بيانات الطلاب'!$B35)","v":0},{"$f":"Table1[[#This Row],[القسط لبناني]]+Table1[[#This Row],[مدين لبناني]]-Table1[[#This Row],[دائن لبناني]]","v":0},null,{"$f":"SUMIFS(المقبوضات!$I:$I,المقبوضات!$E:$E,'بيانات الطلاب'!J$2,المقبوضات!$B:$B,'بيانات الطلاب'!$B35)","v":0},{"$f":"SUMIFS(المقبوضات!$I:$I,المقبوضات!$E:$E,'بيانات الطلاب'!K$2,المقبوضات!$B:$B,'بيانات الطلاب'!$B35)","v":0},{"$f":"Table1[[#This Row],[القسط دولار]]+Table1[[#This Row],[مدين دولار]]-Table1[[#This Row],[دائن دولار]]","v":0}]
["STD-34",null,null,null,null,{"$f":"SUMIFS(المقبوضات!$I:$I,المقبوضات!$E:$E,'بيانات الطلاب'!F$2,المقبوضات!$B:$B,'بيانات الطلاب'!$B36)","v":0},{"$f":"SUMIFS(المقبوضات!$I:$I,المقبوضات!$E:$E,'بيانات الطلاب'!G$2,المقبوضات!$B:$B,'بيانات الطلاب'!$B36)","v":0},{"$f":"Table1[[#This Row],[القسط لبناني]]+Table1[[#This Row],[مدين لبناني]]-Table1[[#This Row],[دائن لبناني]]","v":0},null,{"$f":"SUMIFS(المقبوضات!$I:$I,المقبوضات!$E:$E,'بيانات الطلاب'!J$2,المقبوضات!$B:$B,'بيانات الطلاب'!$B36)","v":0},{"$f":"SUMIFS(المقبوضات!$I:$I,المقبوضات!$E:$E,'بيانات الطلاب'!K$2,المقبوضات!$B:$B,'بيانات الطلاب'!$B36)","v":0},{"$f":"Table1[[#This Row],[القسط دولار]]+Table1[[#This Row],[مدين دولار]]-Table1[[#This Row],[دائن دولار]]","v":0}]
["STD-35",null,null,null,null,{"$f":"SUMIFS(المقبوضات!$I:$I,المقبوضات!$E:$E,'بيانات الطلاب'!F$2,المقبوضات!$B:$B,'بيانات الطلاب'!$B37)","v":0},{"$f":"SUMIFS(المقبوضات!$I:$I,المقبوضات!$E:$E,'بيانات الطلاب'!G$2,المقبوضات!$B:$B,'بيانات الطلاب'!$B37)","v":0},{"$f":"Table1[[#This Row],[القسط لبناني]]+Table1[[#This Row],[مدين لبناني]]-Table1[[#This Row],[دائن لبناني]]","v":0},null,{"$f":"SUMIFS(المقبوضات!$I:$I,المقبوضات!$E:$E,'بيانات الطلاب'!J$2,المقبوضات!$B:$B,'بيانات الطلاب'!$B37)","v":0},{"$f":"SUMIFS(المقبوضات!$I:$I,المقبوضات!$E:$E,'بيانات الطلاب'!K$2,المقبوضات!$B:$B,'بيانات الطلاب'!$B37)","v":0},{"$f":"Table1[[#This Row],[القسط دولار]]+Table1[[#This Row],[مدين دولار]]-Table1[[#This Row],[دائن دولار]]","v":0}]
["STD-36",null,null,null,null,{"$f":"SUMIFS(المقبوضات!$I:$I,المقبوضات!$E:$E,'بيانات الطلاب'!F$2,المقبوضات!$B:$B,'بيانات الطلاب'!$B38)","v":0},{"$f":"SUMIFS(المقبوضات!$I:$I,المقبوضات!$E:$E,'بيانات الطلاب'!G$2,المقبوضات!$B:$B,'بيانات الطلاب'!$B38)","v":0},{"$f":"Table1[[#This Row],[القسط لبناني]]+Table1[[#This Row],[مدين لبناني]]-Table1[[#This Row],[دائن لبناني]]","v":0},null,{"$f":"SUMIFS(المقبوضات!$I:$I,المقبوضات!$E:$E,'بيانات الطلاب'!J$2,المقبوضات!$B:$B,'بيانات الطلاب'!$B38)","v":0},{"$f":"SUMIFS(المقبوضات!$I:$I,المقبوضات!$E:$E,'بيانات الطلاب'!K$2,المقبوضات!$B:$B,'بيانات الطلاب'!$B38)","v":0},{"$f":"Table1[[#This Row],[القسط دولار]]+Table1[[#This Row],[مدين دولار]]-Table1[[#This Row],[دائن دولار]]","v":0}]
["STD-37",null,null,null,null,{"$f":"SUMIFS(المقبوضات!$I:$I,المقبوضات!$E:$E,'بيانات الطلاب'!F$2,المقبوضات!$B:$B,'بيانات الطلاب'!$B39)","v":0},{"$f":"SUMIFS(المقبوضات!$I:$I,المقبوضات!$E:$E,'بيانات الطلاب'!G$2,المقبوضات!$B:$B,'بيانات الطلاب'!$B39)","v":0},{"$f":"Table1[[#This Row],[القسط لبناني]]+Table1[[#This Row],[مدين لبناني]]-Table1[[#This Row],[دائن لبناني]]","v":0},null,{"$f":"SUMIFS(المقبوضات!$I:$I,المقبوضات!$E:$E,'بيانات الطلاب'!J$2,المقبوضات!$B:$B,'بيانات الطلاب'!$B39)","v":0},{"$f":"SUMIFS(المقبوضات!$I:$I,المقبوضات!$E:$E,'بيانات الطلاب'!K$2,المقبوضات!$B:$B,'بيانات الطلاب'!$B39)","v":0},{"$f":"Table1[[#This Row],[القسط دولار]]+Table1[[#This Row],[مدين دولار]]-Table1[[#This Row],[دائن دولار]]","v":0}]
["STD-38",null,null,null,null,{"$f":"SUMIFS(المقبوضات!$I:$I,المقبوضات!$E:$E,'بيانات الطلاب'!F$2,المقبوضات!$B:$B,'بيانات الطلاب'!$B40)","v":0},{"$f":"SUMIFS(المقبوضات!$I:$I,المقبوضات!$E:$E,'بيانات الطلاب'!G$2,المقبوضات!$B:$B,'بيانات الطلاب'!$B40)","v":0},{"$f":"Table1[[#This Row],[القسط لبناني]]+Table1[[#This Row],[مدين لبناني]]-Table1[[#This Row],[دائن لبناني]]","v":0},null,{"$f":"SUMIFS(المقبوضات!$I:$I,المقبوضات!$E:$E,'بيانات الطلاب'!J$2,المقبوضات!$B:$B,'بيانات الطلاب'!$B40)","v":0},{"$f":"SUMIFS(المقبوضات!$I:$I,المقبوضات!$E:$E,'بيانات الطلاب'!K$2,المقبوضات!$B:$B,'بيانات الطلاب'!$B40)","v":0},{"$f":"Table1[[#This Row],[القسط دولار]]+Table1[[#This Row],[مدين دولار]]-Table1[[#This Row],[دائن دولار]]","v":0}]
["STD-39",null,null,null,null,{"$f":"SUMIFS(المقبوضات!$I:$I,المقبوضات!$E:$E,'بيانات الطلاب'!F$2,المقبوضات!$B:$B,'بيانات الطلاب'!$B41)","v":0},{"$f":"SUMIFS(المقبوضات!$I:$I,المقبوضات!$E:$E,'بيانات الطلاب'!G$2,المقبوضات!$B:$B,'بيانات الطلاب'!$B41)","v":0},{"$f":"Table1[[#This Row],[القسط لبناني]]+Table1[[#This Row],[مدين لبناني]]-Table1[[#This Row],[دائن لبناني]]","v":0},null,{"$f":"SUMIFS(المقبوضات!$I:$I,المقبوضات!$E:$E,'بيانات الطلاب'!J$2,المقبوضات!$B:$B,'بيانات الطلاب'!$B41)","v":0},{"$f":"SUMIFS(المقبوضات!$I:$I,المقبوضات!$E:$E,'بيانات الطلاب'!K$2,المقبوضات!$B:$B,'بيانات الطلاب'!$B41)","v":0},{"$f":"Table1[[#This Row],[القسط دولار]]+Table1[[#This Row],[مدين دولار]]-Table1[[#This Row],[دائن دولار]]","v":0}]
["STD-40",null,null,null,null,{"$f":"SUMIFS(المقبوضات!$I:$I,المقبوضات!$E:$E,'بيانات الطلاب'!F$2,المقبوضات!$B:$B,'بيانات الطلاب'!$B42)","v":0},{"$f":"SUMIFS(المقبوضات!$I:$I,المقبوضات!$E:$E,'بيانات الطلاب'!G$2,المقبوضات!$B:$B,'بيانات الطلاب'!$B42)","v":0},{"$f":"Table1[[#This Row],[القسط لبناني]]+Table1[[#This Row],[مدين لبناني]]-Table1[[#This Row],[دائن لبناني]]","v":0},null,{"$f":"SUMIFS(المقبوضات!$I:$I,المقبوضات!$E:$E,'بيانات الطلاب'!J$2,المقبوضات!$B:$B,'بيانات الطلاب'!$B42)","v":0},{"$f":"SUMIFS(المقبوضات!$I:$I,المقبوضات!$E:$E,'بيانات الطلاب'!K$2,المقبوضات!$B:$B,'بيانات الطلاب'!$B42)","v":0},{"$f":"Table1[[#This Row],[القسط دولار]]+Table1[[#This Row],[مدين دولار]]-Table1[[#This Row],[دائن دولار]]","v":0}]
["STD-41",null,null,null,null,{"$f":"SUMIFS(المقبوضات!$I:$I,المقبوضات!$E:$E,'بيانات الطلاب'!F$2,المقبوضات!$B:$B,'بيانات الطلاب'!$B43)","v":0},{"$f":"SUMIFS(المقبوضات!$I:$I,المقبوضات!$E:$E,'بيانات الطلاب'!G$2,المقبوضات!$B:$B,'بيانات الطلاب'!$B43)","v":0},{"$f":"Table1[[#This Row],[القسط لبناني]]+Table1[[#This Row],[مدين لبناني]]-Table1[[#This Row],[دائن لبناني]]","v":0},null,{"$f":"SUMIFS(المقبوضات!$I:$I,المقبوضات!$E:$E,'بيانات الطلاب'!J$2,المقبوضات!$B:$B,'بيانات الطلاب'!$B43)","v":0},{"$f":"SUMIFS(المقبوضات!$I:$I,المقبوضات!$E:$E,'بيانات الطلاب'!K$2,المقبوضات!$B:$B,'بيانات الطلاب'!$B43)","v":0},{"$f":"Table1[[#This Row],[القسط دولار]]+Table1[[#This Row],[مدين دولار]]-Table1[[#This Row],[دائن دولار]]","v":0}]
["STD-42",null,null,null,null,{"$f":"SUMIFS(المقبوضات!$I:$I,المقبوضات!$E:$E,'بيانات الطلاب'!F$2,المقبوضات!$B:$B,'بيانات الطلاب'!$B44)","v":0},{"$f":"SUMIFS(المقبوضات!$I:$I,المقبوضات!$E:$E,'بيانات الطلاب'!G$2,المقبوضات!$B:$B,'بيانات الطلاب'!$B44)","v":0},{"$f":"Table1[[#This Row],[القسط لبناني]]+Table1[[#This Row],[مدين لبناني]]-Table1[[#This Row],[دائن لبناني]]","v":0},null,{"$f":"SUMIFS(المقبوضات!$I:$I,المقبوضات!$E:$E,'بيانات الطلاب'!J$2,المقبوضات!$B:$B,'بيانات الطلاب'!$B44)","v":0},{"$f":"SUMIFS(المقبوضات!$I:$I,المقبوضات!$E:$E,'بيانات الطلاب'!K$2,المقبوضات!$B:$B,'بيانات الطلاب'!$B44)","v":0},{"$f":"Table1[[#This Row],[القسط دولار]]+Table1[[#This Row],[مدين دولار]]-Table1[[#This Row],[دائن دولار]]","v":0}]
["STD-43",null,null,null,null,{"$f":"SUMIFS(المقبوضات!$I:$I,المقبوضات!$E:$E,'بيانات الطلاب'!F$2,المقبوضات!$B:$B,'بيانات الطلاب'!$B45)","v":0},{"$f":"SUMIFS(المقبوضات!$I:$I,المقبوضات!$E:$E,'بيانات الطلاب'!G$2,المقبوضات!$B:$B,'بيانات الطلاب'!$B45)","v":0},{"$f":"Table1[[#This Row],[القسط لبناني]]+Table1[[#This Row],[مدين لبناني]]-Table1[[#This Row],[دائن لبناني]]","v":0},null,{"$f":"SUMIFS(المقبوضات!$I:$I,المقبوضات!$E:$E,'بيانات الطلاب'!J$2,المقبوضات!$B:$B,'بيانات الطلاب'!$B45)","v":0},{"$f":"SUMIFS(المقبوضات!$I:$I,المقبوضات!$E:$E,'بيانات الطلاب'!K$2,المقبوضات!$B:$B,'بيانات الطلاب'!$B45)","v":0},{"$f":"Table1[[#This Row],[القسط دولار]]+Table1[[#This Row],[مدين دولار]]-Table1[[#This Row],[دائن دولار]]","v":0}]
["STD-44",null,null,null,null,{"$f":"SUMIFS(المقبوضات!$I:$I,المقبوضات!$E:$E,'بيانات الطلاب'!F$2,المقبوضات!$B:$B,'بيانات الطلاب'!$B46)","v":0},{"$f":"SUMIFS(المقبوضات!$I:$I,المقبوضات!$E:$E,'بيانات الطلاب'!G$2,المقبوضات!$B:$B,'بيانات الطلاب'!$B46)","v":0},{"$f":"Table1[[#This Row],[القسط لبناني]]+Table1[[#This Row],[مدين لبناني]]-Table1[[#This Row],[دائن لبناني]]","v":0},null,{"$f":"SUMIFS(المقبوضات!$I:$I,المقبوضات!$E:$E,'بيانات الطلاب'!J$2,المقبوضات!$B:$B,'بيانات الطلاب'!$B46)","v":0},{"$f":"SUMIFS(المقبوضات!$I:$I,المقبوضات!$E:$E,'بيانات الطلاب'!K$2,المقبوضات!$B:$B,'بيانات الطلاب'!$B46)","v":0},{"$f":"Table1[[#This Row],[القسط دولار]]+Table1[[#This Row],[مدين دولار]]-Table1[[#This Row],[دائن دولار]]","v":0}]
["STD-45",null,null,null,null,{"$f":"SUMIFS(المقبوضات!$I:$I,المقبوضات!$E:$E,'بيانات الطلاب'!F$2,المقبوضات!$B:$B,'بيانات الطلاب'!$B47)","v":0},{"$f":"SUMIFS(المقبوضات!$I:$I,المقبوضات!$E:$E,'بيانات الطلاب'!G$2,المقبوضات!$B:$B,'بيانات الطلاب'!$B47)","v":0},{"$f":"Table1[[#This Row],[القسط لبناني]]+Table1[[#This Row],[مدين لبناني]]-Table1[[#This Row],[دائن لبناني]]","v":0},null,{"$f":"SUMIFS(المقبوضات!$I:$I,المقبوضات!$E:$E,'بيانات الطلاب'!J$2,المقبوضات!$B:$B,'بيانات الطلاب'!$B47)","v":0},{"$f":"SUMIFS(المقبوضات!$I:$I,المقبوضات!$E:$E,'بيانات الطلاب'!K$2,المقبوضات!$B:$B,'بيانات الطلاب'!$B47)","v":0},{"$f":"Table1[[#This Row],[القسط دولار]]+Table1[[#This Row],[مدين دولار]]-Table1[[#This Row],[دائن دولار]]","v":0}]
["STD-46",null,null,null,null,{"$f":"SUMIFS(المقبوضات!$I:$I,المقبوضات!$E:$E,'بيانات الطلاب'!F$2,المقبوضات!$B:$B,'بيانات الطلاب'!$B48)","v":0},{"$f":"SUMIFS(المقبوضات!$I:$I,المقبوضات!$E:$E,'بيانات الطلاب'!G$2,المقبوضات!$B:$B,'بيانات الطلاب'!$B48)","v":0},{"$f":"Table1[[#This Row],[القسط لبناني]]+Table1[[#This Row],[مدين لبناني]]-Table1[[#This Row],[دائن لبناني]]","v":0},null,{"$f":"SUMIFS(المقبوضات!$I:$I,المقبوضات!$E:$E,'بيانات الطلاب'!J$2,المقبوضات!$B:$B,'بيانات الطلاب'!$B48)","v":0},{"$f":"SUMIFS(المقبوضات!$I:$I,المقبوضات!$E:$E,'بيانات الطلاب'!K$2,المقبوضات!$B:$B,'بيانات الطلاب'!$B48)","v":0},{"$f":"Table1[[#This Row],[القسط دولار]]+Table1[[#This Row],[مدين دولار]]-Table1[[#This Row],[دائن دولار]]","v":0}]
["STD-47",null,null,null,null,{"$f":"SUMIFS(المقبوضات!$I:$I,المقبوضات!$E:$E,'بيانات الطلاب'!F$2,المقبوضات!$B:$B,'بيانات الطلاب'!$B49)","v":0},{"$f":"SUMIFS(المقبوضات!$I:$I,المقبوضات!$E:$E,'بيانات الطلاب'!G$2,المقبوضات!$B:$B,'بيانات الطلاب'!$B49)","v":0},{"$f":"Table1[[#This Row],[القسط لبناني]]+Table1[[#This Row],[مدين لبناني]]-Table1[[#This Row],[دائن لبناني]]","v":0},null,{"$f":"SUMIFS(المقبوضات!$I:$I,المقبوضات!$E:$E,'بيانات الطلاب'!J$2,المقبوضات!$B:$B,'بيانات الطلاب'!$B49)","v":0},{"$f":"SUMIFS(المقبوضات!$I:$I,المقبوضات!$E:$E,'بيانات الطلاب'!K$2,المقبوضات!$B:$B,'بيانات الطلاب'!$B49)","v":0},{"$f":"Table1[[#This Row],[القسط دولار]]+Table1[[#This Row],[مدين دولار]]-Table1[[#This Row],[دائن دولار]]","v":0}]
["STD-48",null,null,null,null,{"$f":"SUMIFS(المقبوضات!$I:$I,المقبوضات!$E:$E,'بيانات الطلاب'!F$2,المقبوضات!$B:$B,'بيانات الطلاب'!$B50)","v":0},{"$f":"SUMIFS(المقبوضات!$I:$I,المقبوضات!$E:$E,'بيانات الطلاب'!G$2,المقبوضات!$B:$B,'بيانات الطلاب'!$B50)","v":0},{"$f":"Table1[[#This Row],[القسط لبناني]]+Table1[[#This Row],[مدين لبناني]]-Table1[[#This Row],[دائن لبناني]]","v":0},null,{"$f":"SUMIFS(المقبوضات!$I:$I,المقبوضات!$E:$E,'بيانات الطلاب'!J$2,المقبوضات!$B:$B,'بيانات الطلاب'!$B50)","v":0},{"$f":"SUMIFS(المقبوضات!$I:$I,المقبوضات!$E:$E,'بيانات الطلاب'!K$2,المقبوضات!$B:$B,'بيانات الطلاب'!$B50)","v":0},{"$f":"Table1[[#This Row],[القسط دولار]]+Table1[[#This Row],[مدين دولار]]-Table1[[#This Row],[دائن دولار]]","v":0}]
["STD-49",null,null,null,null,{"$f":"SUMIFS(المقبوضات!$I:$I,المقبوضات!$E:$E,'بيانات الطلاب'!F$2,المقبوضات!$B:$B,'بيانات الطلاب'!$B51)","v":0},{"$f":"SUMIFS(المقبوضات!$I:$I,المقبوضات!$E:$E,'بيانات الطلاب'!G$2,المقبوضات!$B:$B,'بيانات الطلاب'!$B51)","v":0},{"$f":"Table1[[#This Row],[القسط لبناني]]+Table1[[#This Row],[مدين لبناني]]-Table1[[#This Row],[دائن لبناني]]","v":0},null,{"$f":"SUMIFS(المقبوضات!$I:$I,المقبوضات!$E:$E,'بيانات الطلاب'!J$2,المقبوضات!$B:$B,'بيانات الطلاب'!$B51)","v":0},{"$f":"SUMIFS(المقبوضات!$I:$I,المقبوضات!$E:$E,'بيانات الطلاب'!K$2,المقبوضات!$B:$B,'بيانات الطلاب'!$B51)","v":0},{"$f":"Table1[[#This Row],[القسط دولار]]+Table1[[#This Row],[مدين دولار]]-Table1[[#This Row],[دائن دولار]]","v":0}]
["STD-50",null,null,null,null,{"$f":"SUMIFS(المقبوضات!$I:$I,المقبوضات!$E:$E,'بيانات الطلاب'!F$2,المقبوضات!$B:$B,'بيانات الطلاب'!$B52)","v":0},{"$f":"SUMIFS(المقبوضات!$I:$I,المقبوضات!$E:$E,'بيانات الطلاب'!G$2,المقبوضات!$B:$B,'بيانات الطلاب'!$B52)","v":0},{"$f":"Table1[[#This Row],[القسط لبناني]]+Table1[[#This Row],[مدين لبناني]]-Table1[[#This Row],[دائن لبناني]]","v":0},null,{"$f":"SUMIFS(المقبوضات!$I:$I,المقبوضات!$E:$E,'بيانات الطلاب'!J$2,المقبوضات!$B:$B,'بيانات الطلاب'!$B52)","v":0},{"$f":"SUMIFS(المقبوضات!$I:$I,المقبوضات!$E:$E,'بيانات الطلاب'!K$2,المقبوضات!$B:$B,'بيانات الطلاب'!$B52)","v":0},{"$f":"Table1[[#This Row],[القسط دولار]]+Table1[[#This Row],[مدين دولار]]-Table1[[#This Row],[دائن دولار]]","v":0}]
["STD-51",null,null,null,null,{"$f":"SUMIFS(المقبوضات!$I:$I,المقبوضات!$E:$E,'بيانات الطلاب'!F$2,المقبوضات!$B:$B,'بيانات الطلاب'!$B53)","v":0},{"$f":"SUMIFS(المقبوضات!$I:$I,المقبوضات!$E:$E,'بيانات الطلاب'!G$2,المقبوضات!$B:$B,'بيانات الطلاب'!$B53)","v":0},{"$f":"Table1[[#This Row],[القسط لبناني]]+Table1[[#This Row],[مدين لبناني]]-Table1[[#This Row],[دائن لبناني]]","v":0},null,{"$f":"SUMIFS(المقبوضات!$I:$I,المقبوضات!$E:$E,'بيانات الطلاب'!J$2,المقبوضات!$B:$B,'بيانات الطلاب'!$B53)","v":0},{"$f":"SUMIFS(المقبوضات!$I:$I,المقبوضات!$E:$E,'بيانات الطلاب'!K$2,المقبوضات!$B:$B,'بيانات الطلاب'!$B53)","v":0},{"$f":"Table1[[#This Row],[القسط دولار]]+Table1[[#This Row],[مدين دولار]]-Table1[[#This Row],[دائن دولار]]","v":0}]
["STD-52",null,null,null,null,{"$f":"SUMIFS(المقبوضات!$I:$I,المقبوضات!$E:$E,'بيانات الطلاب'!F$2,المقبوضات!$B:$B,'بيانات الطلاب'!$B54)","v":0},{"$f":"SUMIFS(المقبوضات!$I:$I,المقبوضات!$E:$E,'بيانات الطلاب'!G$2,المقبوضات!$B:$B,'بيانات الطلاب'!$B54)","v":0},{"$f":"Table1[[#This Row],[القسط لبناني]]+Table1[[#This Row],[مدين لبناني]]-Table1[[#This Row],[دائن لبناني]]","v":0},null,{"$f":"SUMIFS(المقبوضات!$I:$I,المقبوضات!$E:$E,'بيانات الطلاب'!J$2,المقبوضات!$B:$B,'بيانات الطلاب'!$B54)","v":0},{"$f":"SUMIFS(المقبوضات!$I:$I,المقبوضات!$E:$E,'بيانات الطلاب'!K$2,المقبوضات!$B:$B,'بيانات الطلاب'!$B54)","v":0},{"$f":"Table1[[#This Row],[القسط دولار]]+Table1[[#This Row],[مدين دولار]]-Table1[[#This Row],[دائن دولار]]","v":0}]
["STD-53",null,null,null,null,{"$f":"SUMIFS(المقبوضات!$I:$I,المقبوضات!$E:$E,'بيانات الطلاب'!F$2,المقبوضات!$B:$B,'بيانات الطلاب'!$B55)","v":0},{"$f":"SUMIFS(المقبوضات!$I:$I,المقبوضات!$E:$E,'بيانات الطلاب'!G$2,المقبوضات!$B:$B,'بيانات الطلاب'!$B55)","v":0},{"$f":"Table1[[#This Row],[القسط لبناني]]+Table1[[#This Row],[مدين لبناني]]-Table1[[#This Row],[دائن لبناني]]","v":0},null,{"$f":"SUMIFS(المقبوضات!$I:$I,المقبوضات!$E:$E,'بيانات الطلاب'!J$2,المقبوضات!$B:$B,'بيانات الطلاب'!$B55)","v":0},{"$f":"SUMIFS(المقبوضات!$I:$I,المقبوضات!$E:$E,'بيانات الطلاب'!K$2,المقبوضات!$B:$B,'بيانات الطلاب'!$B55)","v":0},{"$f":"Table1[[#This Row],[القسط دولار]]+Table1[[#This Row],[مدين دولار]]-Table1[[#This Row],[دائن دولار]]","v":0}]
["STD-54",null,null,null,null,{"$f":"SUMIFS(المقبوضات!$I:$I,المقبوضات!$E:$E,'بيانات الطلاب'!F$2,المقبوضات!$B:$B,'بيانات الطلاب'!$B56)","v":0},{"$f":"SUMIFS(المقبوضات!$I:$I,المقبوضات!$E:$E,'بيانات الطلاب'!G$2,المقبوضات!$B:$B,'بيانات الطلاب'!$B56)","v":0},{"$f":"Table1[[#This Row],[القسط لبناني]]+Table1[[#This Row],[مدين لبناني]]-Table1[[#This Row],[دائن لبناني]]","v":0},null,{"$f":"SUMIFS(المقبوضات!$I:$I,المقبوضات!$E:$E,'بيانات الطلاب'!J$2,المقبوضات!$B:$B,'بيانات الطلاب'!$B56)","v":0},{"$f":"SUMIFS(المقبوضات!$I:$I,المقبوضات!$E:$E,'بيانات الطلاب'!K$2,المقبوضات!$B:$B,'بيانات الطلاب'!$B56)","v":0},{"$f":"Table1[[#This Row],[القسط دولار]]+Table1[[#This Row],[مدين دولار]]-Table1[[#This Row],[دائن دولار]]","v":0}]
["STD-55",null,null,null,null,{"$f":"SUMIFS(المقبوضات!$I:$I,المقبوضات!$E:$E,'بيانات الطلاب'!F$2,المقبوضات!$B:$B,'بيانات الطلاب'!$B57)","v":0},{"$f":"SUMIFS(المقبوضات!$I:$I,المقبوضات!$E:$E,'بيانات الطلاب'!G$2,المقبوضات!$B:$B,'بيانات الطلاب'!$B57)","v":0},{"$f":"Table1[[#This Row],[القسط لبناني]]+Table1[[#This Row],[مدين لبناني]]-Table1[[#This Row],[دائن لبناني]]","v":0},null,{"$f":"SUMIFS(المقبوضات!$I:$I,المقبوضات!$E:$E,'بيانات الطلاب'!J$2,المقبوضات!$B:$B,'بيانات الطلاب'!$B57)","v":0},{"$f":"SUMIFS(المقبوضات!$I:$I,المقبوضات!$E:$E,'بيانات الطلاب'!K$2,المقبوضات!$B:$B,'بيانات الطلاب'!$B57)","v":0},{"$f":"Table1[[#This Row],[القسط دولار]]+Table1[[#This Row],[مدين دولار]]-Table1[[#This Row],[دائن دولار]]","v":0}]
["STD-56",null,null,null,null,{"$f":"SUMIFS(المقبوضات!$I:$I,المقبوضات!$E:$E,'بيانات الطلاب'!F$2,المقبوضات!$B:$B,'بيانات الطلاب'!$B58)","v":0},{"$f":"SUMIFS(المقبوضات!$I:$I,المقبوضات!$E:$E,'بيانات الطلاب'!G$2,المقبوضات!$B:$B,'بيانات الطلاب'!$B58)","v":0},{"$f":"Table1[[#This Row],[القسط لبناني]]+Table1[[#This Row],[مدين لبناني]]-Table1[[#This Row],[دائن لبناني]]","v":0},null,{"$f":"SUMIFS(المقبوضات!$I:$I,المقبوضات!$E:$E,'بيانات الطلاب'!J$2,المقبوضات!$B:$B,'بيانات الطلاب'!$B58)","v":0},{"$f":"SUMIFS(المقبوضات!$I:$I,المقبوضات!$E:$E,'بيانات الطلاب'!K$2,المقبوضات!$B:$B,'بيانات الطلاب'!$B58)","v":0},{"$f":"Table1[[#This Row],[القسط دولار]]+Table1[[#This Row],[مدين دولار]]-Table1[[#This Row],[دائن دولار]]","v":0}]
["STD-57",null,null,null,null,{"$f":"SUMIFS(المقبوضات!$I:$I,المقبوضات!$E:$E,'بيانات الطلاب'!F$2,المقبوضات!$B:$B,'بيانات الطلاب'!$B59)","v":0},{"$f":"SUMIFS(المقبوضات!$I:$I,المقبوضات!$E:$E,'بيانات الطلاب'!G$2,المقبوضات!$B:$B,'بيانات الطلاب'!$B59)","v":0},{"$f":"Table1[[#This Row],[القسط لبناني]]+Table1[[#This Row],[مدين لبناني]]-Table1[[#This Row],[دائن لبناني]]","v":0},null,{"$f":"SUMIFS(المقبوضات!$I:$I,المقبوضات!$E:$E,'بيانات الطلاب'!J$2,المقبوضات!$B:$B,'بيانات الطلاب'!$B59)","v":0},{"$f":"SUMIFS(المقبوضات!$I:$I,المقبوضات!$E:$E,'بيانات الطلاب'!K$2,المقبوضات!$B:$B,'بيانات الطلاب'!$B59)","v":0},{"$f":"Table1[[#This Row],[القسط دولار]]+Table1[[#This Row],[مدين دولار]]-Table1[[#This Row],[دائن دولار]]","v":0}]
["STD-58",null,null,null,null,{"$f":"SUMIFS(المقبوضات!$I:$I,المقبوضات!$E:$E,'بيانات الطلاب'!F$2,المقبوضات!$B:$B,'بيانات الطلاب'!$B60)","v":0},{"$f":"SUMIFS(المقبوضات!$I:$I,المقبوضات!$E:$E,'بيانات الطلاب'!G$2,المقبوضات!$B:$B,'بيانات الطلاب'!$B60)","v":0},{"$f":"Table1[[#This Row],[القسط لبناني]]+Table1[[#This Row],[مدين لبناني]]-Table1[[#This Row],[دائن لبناني]]","v":0},null,{"$f":"SUMIFS(المقبوضات!$I:$I,المقبوضات!$E:$E,'بيانات الطلاب'!J$2,المقبوضات!$B:$B,'بيانات الطلاب'!$B60)","v":0},{"$f":"SUMIFS(المقبوضات!$I:$I,المقبوضات!$E:$E,'بيانات الطلاب'!K$2,المقبوضات!$B:$B,'بيانات الطلاب'!$B60)","v":0},{"$f":"Table1[[#This Row],[القسط دولار]]+Table1[[#This Row],[مدين دولار]]-Table1[[#This Row],[دائن دولار]]","v":0}]
["STD-59",null,null,null,null,{"$f":"SUMIFS(المقبوضات!$I:$I,المقبوضات!$E:$E,'بيانات الطلاب'!F$2,المقبوضات!$B:$B,'بيانات الطلاب'!$B61)","v":0},{"$f":"SUMIFS(المقبوضات!$I:$I,المقبوضات!$E:$E,'بيانات الطلاب'!G$2,المقبوضات!$B:$B,'بيانات الطلاب'!$B61)","v":0},{"$f":"Table1[[#This Row],[القسط لبناني]]+Table1[[#This Row],[مدين لبناني]]-Table1[[#This Row],[دائن لبناني]]","v":0},null,{"$f":"SUMIFS(المقبوضات!$I:$I,المقبوضات!$E:$E,'بيانات الطلاب'!J$2,المقبوضات!$B:$B,'بيانات الطلاب'!$B61)","v":0},{"$f":"SUMIFS(المقبوضات!$I:$I,المقبوضات!$E:$E,'بيانات الطلاب'!K$2,المقبوضات!$B:$B,'بيانات الطلاب'!$B61)","v":0},{"$f":"Table1[[#This Row],[القسط دولار]]+Table1[[#This Row],[مدين دولار]]-Table1[[#This Row],[دائن دولار]]","v":0}]
["STD-60",null,null,null,null,{"$f":"SUMIFS(المقبوضات!$I:$I,المقبوضات!$E:$E,'بيانات الطلاب'!F$2,المقبوضات!$B:$B,'بيانات الطلاب'!$B62)","v":0},{"$f":"SUMIFS(المقبوضات!$I:$I,المقبوضات!$E:$E,'بيانات الطلاب'!G$2,المقبوضات!$B:$B,'بيانات الطلاب'!$B62)","v":0},{"$f":"Table1[[#This Row],[القسط لبناني]]+Table1[[#This Row],[مدين لبناني]]-Table1[[#This Row],[دائن لبناني]]","v":0},null,{"$f":"SUMIFS(المقبوضات!$I:$I,المقبوضات!$E:$E,'بيانات الطلاب'!J$2,المقبوضات!$B:$B,'بيانات الطلاب'!$B62)","v":0},{"$f":"SUMIFS(المقبوضات!$I:$I,المقبوضات!$E:$E,'بيانات الطلاب'!K$2,المقبوضات!$B:$B,'بيانات الطلاب'!$B62)","v":0},{"$f":"Table1[[#This Row],[القسط دولار]]+Table1[[#This Row],[مدين دولار]]-Table1[[#This Row],[دائن دولار]]","v":0}]
["STD-61",null,null,null,null,{"$f":"SUMIFS(المقبوضات!$I:$I,المقبوضات!$E:$E,'بيانات الطلاب'!F$2,المقبوضات!$B:$B,'بيانات الطلاب'!$B63)","v":0},{"$f":"SUMIFS(المقبوضات!$I:$I,المقبوضات!$E:$E,'بيانات الطلاب'!G$2,المقبوضات!$B:$B,'بيانات الطلاب'!$B63)","v":0},{"$f":"Table1[[#This Row],[القسط لبناني]]+Table1[[#This Row],[مدين لبناني]]-Table1[[#This Row],[دائن لبناني]]","v":0},null,{"$f":"SUMIFS(المقبوضات!$I:$I,المقبوضات!$E:$E,'بيانات الطلاب'!J$2,المقبوضات!$B:$B,'بيانات الطلاب'!$B63)","v":0},{"$f":"SUMIFS(المقبوضات!$I:$I,المقبوضات!$E:$E,'بيانات الطلاب'!K$2,المقبوضات!$B:$B,'بيانات الطلاب'!$B63)","v":0},{"$f":"Table1[[#This Row],[القسط دولار]]+Table1[[#This Row],[مدين دولار]]-Table1[[#This Row],[دائن دولار]]","v":0}]
["STD-62",null,null,null,null,{"$f":"SUMIFS(المقبوضات!$I:$I,المقبوضات!$E:$E,'بيانات الطلاب'!F$2,المقبوضات!$B:$B,'بيانات الطلاب'!$B64)","v":0},{"$f":"SUMIFS(المقبوضات!$I:$I,المقبوضات!$E:$E,'بيانات الطلاب'!G$2,المقبوضات!$B:$B,'بيانات الطلاب'!$B64)","v":0},{"$f":"Table1[[#This Row],[القسط لبناني]]+Table1[[#This Row],[مدين لبناني]]-Table1[[#This Row],[دائن لبناني]]","v":0},null,{"$f":"SUMIFS(المقبوضات!$I:$I,المقبوضات!$E:$E,'بيانات الطلاب'!J$2,المقبوضات!$B:$B,'بيانات الطلاب'!$B64)","v":0},{"$f":"SUMIFS(المقبوضات!$I:$I,المقبوضات!$E:$E,'بيانات الطلاب'!K$2,المقبوضات!$B:$B,'بيانات الطلاب'!$B64)","v":0},{"$f":"Table1[[#This Row],[القسط دولار]]+Table1[[#This Row],[مدين دولار]]-Table1[[#This Row],[دائن دولار]]","v":0}]
["STD-63",null,null,null,null,{"$f":"SUMIFS(المقبوضات!$I:$I,المقبوضات!$E:$E,'بيانات الطلاب'!F$2,المقبوضات!$B:$B,'بيانات الطلاب'!$B65)","v":0},{"$f":"SUMIFS(المقبوضات!$I:$I,المقبوضات!$E:$E,'بيانات الطلاب'!G$2,المقبوضات!$B:$B,'بيانات الطلاب'!$B65)","v":0},{"$f":"Table1[[#This Row],[القسط لبناني]]+Table1[[#This Row],[مدين لبناني]]-Table1[[#This Row],[دائن لبناني]]","v":0},null,{"$f":"SUMIFS(المقبوضات!$I:$I,المقبوضات!$E:$E,'بيانات الطلاب'!J$2,المقبوضات!$B:$B,'بيانات الطلاب'!$B65)","v":0},{"$f":"SUMIFS(المقبوضات!$I:$I,المقبوضات!$E:$E,'بيانات الطلاب'!K$2,المقبوضات!$B:$B,'بيانات الطلاب'!$B65)","v":0},{"$f":"Table1[[#This Row],[القسط دولار]]+Table1[[#This Row],[مدين دولار]]-Table1[[#This Row],[دائن دولار]]","v":0}]
["STD-64",null,null,null,null,{"$f":"SUMIFS(المقبوضات!$I:$I,المقبوضات!$E:$E,'بيانات الطلاب'!F$2,المقبوضات!$B:$B,'بيانات الطلاب'!$B66)","v":0},{"$f":"SUMIFS(المقبوضات!$I:$I,المقبوضات!$E:$E,'بيانات الطلاب'!G$2,المقبوضات!$B:$B,'بيانات الطلاب'!$B66)","v":0},{"$f":"Table1[[#This Row],[القسط لبناني]]+Table1[[#This Row],[مدين لبناني]]-Table1[[#This Row],[دائن لبناني]]","v":0},null,{"$f":"SUMIFS(المقبوضات!$I:$I,المقبوضات!$E:$E,'بيانات الطلاب'!J$2,المقبوضات!$B:$B,'بيانات الطلاب'!$B66)","v":0},{"$f":"SUMIFS(المقبوضات!$I:$I,المقبوضات!$E:$E,'بيانات الطلاب'!K$2,المقبوضات!$B:$B,'بيانات الطلاب'!$B66)","v":0},{"$f":"Table1[[#This Row],[القسط دولار]]+Table1[[#This Row],[مدين دولار]]-Table1[[#This Row],[دائن دولار]]","v":0}]
[{"$f":"\"STD\"&\"-\"&(ROW(A67)-2)","v":"STD-65"},null,null,null,null,{"$f":"SUMIFS(المقبوضات!$I:$I,المقبوضات!$E:$E,'بيانات الطلاب'!F$2,المقبوضات!$B:$B,'بيانات الطلاب'!$B67)","v":0},{"$f":"SUMIFS(المقبوضات!$I:$I,المقبوضات!$E:$E,'بيانات الطلاب'!G$2,المقبوضات!$B:$B,'بيانات الطلاب'!$B67)","v":0},{"$f":"Table1[[#This Row],[القسط لبناني]]+Table1[[#This Row],[مدين لبناني]]-Table1[[#This Row],[دائن لبناني]]","v":0},null,{"$f":"SUMIFS(المقبوضات!$I:$I,المقبوضات!$E:$E,'بيانات الطلاب'!J$2,المقبوضات!$B:$B,'بيانات الطلاب'!$B67)","v":0},{"$f":"SUMIFS(المقبوضات!$I:$I,المقبوضات!$E:$E,'بيانات الطلاب'!K$2,المقبوضات!$B:$B,'بيانات الطلاب'!$B67)","v":0},{"$f":"Table1[[#This Row],[القسط دولار]]+Table1[[#This Row],[مدين دولار]]-Table1[[#This Row],[دائن دولار]]","v":0}]
["STD-66",null,null,null,null,{"$f":"SUMIFS(المقبوضات!$I:$I,المقبوضات!$E:$E,'بيانات الطلاب'!F$2,المقبوضات!$B:$B,'بيانات الطلاب'!$B68)","v":0},{"$f":"SUMIFS(المقبوضات!$I:$I,المقبوضات!$E:$E,'بيانات الطلاب'!G$2,المقبوضات!$B:$B,'بيانات الطلاب'!$B68)","v":0},{"$f":"Table1[[#This Row],[القسط لبناني]]+Table1[[#This Row],[مدين لبناني]]-Table1[[#This Row],[دائن لبناني]]","v":0},null,{"$f":"SUMIFS(المقبوضات!$I:$I,المقبوضات!$E:$E,'بيانات الطلاب'!J$2,المقبوضات!$B:$B,'بيانات الطلاب'!$B68)","v":0},{"$f":"SUMIFS(المقبوضات!$I:$I,المقبوضات!$E:$E,'بيانات الطلاب'!K$2,المقبوضات!$B:$B,'بيانات الطلاب'!$B68)","v":0},{"$f":"Table1[[#This Row],[القسط دولار]]+Table1[[#This Row],[مدين دولار]]-Table1[[#This Row],[دائن دولار]]","v":0}]
["STD-67",null,null,null,null,{"$f":"SUMIFS(المقبوضات!$I:$I,المقبوضات!$E:$E,'بيانات الطلاب'!F$2,المقبوضات!$B:$B,'بيانات الطلاب'!$B69)","v":0},{"$f":"SUMIFS(المقبوضات!$I:$I,المقبوضات!$E:$E,'بيانات الطلاب'!G$2,المقبوضات!$B:$B,'بيانات الطلاب'!$B69)","v":0},{"$f":"Table1[[#This Row],[القسط لبناني]]+Table1[[#This Row],[مدين لبناني]]-Table1[[#This Row],[دائن لبناني]]","v":0},null,{"$f":"SUMIFS(المقبوضات!$I:$I,المقبوضات!$E:$E,'بيانات الطلاب'!J$2,المقبوضات!$B:$B,'بيانات الطلاب'!$B69)","v":0},{"$f":"SUMIFS(المقبوضات!$I:$I,المقبوضات!$E:$E,'بيانات الطلاب'!K$2,المقبوضات!$B:$B,'بيانات الطلاب'!$B69)","v":0},{"$f":"Table1[[#This Row],[القسط دولار]]+Table1[[#This Row],[مدين دولار]]-Table1[[#This Row],[دائن دولار]]","v":0}]
["STD-68",null,null,null,null,{"$f":"SUMIFS(المقبوضات!$I:$I,المقبوضات!$E:$E,'بيانات الطلاب'!F$2,المقبوضات!$B:$B,'بيانات الطلاب'!$B70)","v":0},{"$f":"SUMIFS(المقبوضات!$I:$I,المقبوضات!$E:$E,'بيانات الطلاب'!G$2,المقبوضات!$B:$B,'بيانات الطلاب'!$B70)","v":0},{"$f":"Table1[[#This Row],[القسط لبناني]]+Table1[[#This Row],[مدين لبناني]]-Table1[[#This Row],[دائن لبناني]]","v":0},null,{"$f":"SUMIFS(المقبوضات!$I:$I,المقبوضات!$E:$E,'بيانات الطلاب'!J$2,المقبوضات!$B:$B,'بيانات الطلاب'!$B70)","v":0},{"$f":"SUMIFS(المقبوضات!$I:$I,المقبوضات!$E:$E,'بيانات الطلاب'!K$2,المقبوضات!$B:$B,'بيانات الطلاب'!$B70)","v":0},{"$f":"Table1[[#This Row],[القسط دولار]]+Table1[[#This Row],[مدين دولار]]-Table1[[#This Row],[دائن دولار]]","v":0}]
["STD-69",null,null,null,null,{"$f":"SUMIFS(المقبوضات!$I:$I,المقبوضات!$E:$E,'بيانات الطلاب'!F$2,المقبوضات!$B:$B,'بيانات الطلاب'!$B71)","v":0},{"$f":"SUMIFS(المقبوضات!$I:$I,المقبوضات!$E:$E,'بيانات الطلاب'!G$2,المقبوضات!$B:$B,'بيانات الطلاب'!$B71)","v":0},{"$f":"Table1[[#This Row],[القسط لبناني]]+Table1[[#This Row],[مدين لبناني]]-Table1[[#This Row],[دائن لبناني]]","v":0},null,{"$f":"SUMIFS(المقبوضات!$I:$I,المقبوضات!$E:$E,'بيانات الطلاب'!J$2,المقبوضات!$B:$B,'بيانات الطلاب'!$B71)","v":0},{"$f":"SUMIFS(المقبوضات!$I:$I,المقبوضات!$E:$E,'بيانات الطلاب'!K$2,المقبوضات!$B:$B,'بيانات الطلاب'!$B71)","v":0},{"$f":"Table1[[#This Row],[القسط دولار]]+Table1[[#This Row],[مدين دولار]]-Table1[[#This Row],[دائن دولار]]","v":0}]
["STD-70",null,null,null,null,{"$f":"SUMIFS(المقبوضات!$I:$I,المقبوضات!$E:$E,'بيانات الطلاب'!F$2,المقبوضات!$B:$B,'بيانات الطلاب'!$B72)","v":0},{"$f":"SUMIFS(المقبوضات!$I:$I,المقبوضات!$E:$E,'بيانات الطلاب'!G$2,المقبوضات!$B:$B,'بيانات الطلاب'!$B72)","v":0},{"$f":"Table1[[#This Row],[القسط لبناني]]+Table1[[#This Row],[مدين لبناني]]-Table1[[#This Row],[دائن لبناني]]","v":0},null,{"$f":"SUMIFS(المقبوضات!$I:$I,المقبوضات!$E:$E,'بيانات الطلاب'!J$2,المقبوضات!$B:$B,'بيانات الطلاب'!$B72)","v":0},{"$f":"SUMIFS(المقبوضات!$I:$I,المقبوضات!$E:$E,'بيانات الطلاب'!K$2,المقبوضات!$B:$B,'بيانات الطلاب'!$B72)","v":0},{"$f":"Table1[[#This Row],[القسط دولار]]+Table1[[#This Row],[مدين دولار]]-Table1[[#This Row],[دائن دولار]]","v":0}]
["STD-71",null,null,null,null,{"$f":"SUMIFS(المقبوضات!$I:$I,المقبوضات!$E:$E,'بيانات الطلاب'!F$2,المقبوضات!$B:$B,'بيانات الطلاب'!$B73)","v":0},{"$f":"SUMIFS(المقبوضات!$I:$I,المقبوضات!$E:$E,'بيانات الطلاب'!G$2,المقبوضات!$B:$B,'بيانات الطلاب'!$B73)","v":0},{"$f":"Table1[[#This Row],[القسط لبناني]]+Table1[[#This Row],[مدين لبناني]]-Table1[[#This Row],[دائن لبناني]]","v":0},null,{"$f":"SUMIFS(المقبوضات!$I:$I,المقبوضات!$E:$E,'بيانات الطلاب'!J$2,المقبوضات!$B:$B,'بيانات الطلاب'!$B73)","v":0},{"$f":"SUMIFS(المقبوضات!$I:$I,المقبوضات!$E:$E,'بيانات الطلاب'!K$2,المقبوضات!$B:$B,'بيانات الطلاب'!$B73)","v":0},{"$f":"Table1[[#This Row],[القسط دولار]]+Table1[[#This Row],[مدين دولار]]-Table1[[#This Row],[دائن دولار]]","v":0}]
["STD-72",null,null,null,null,{"$f":"SUMIFS(المقبوضات!$I:$I,المقبوضات!$E:$E,'بيانات الطلاب'!F$2,المقبوضات!$B:$B,'بيانات الطلاب'!$B74)","v":0},{"$f":"SUMIFS(المقبوضات!$I:$I,المقبوضات!$E:$E,'بيانات الطلاب'!G$2,المقبوضات!$B:$B,'بيانات الطلاب'!$B74)","v":0},{"$f":"Table1[[#This Row],[القسط لبناني]]+Table1[[#This Row],[مدين لبناني]]-Table1[[#This Row],[دائن لبناني]]","v":0},null,{"$f":"SUMIFS(المقبوضات!$I:$I,المقبوضات!$E:$E,'بيانات الطلاب'!J$2,المقبوضات!$B:$B,'بيانات الطلاب'!$B74)","v":0},{"$f":"SUMIFS(المقبوضات!$I:$I,المقبوضات!$E:$E,'بيانات الطلاب'!K$2,المقبوضات!$B:$B,'بيانات الطلاب'!$B74)","v":0},{"$f":"Table1[[#This Row],[القسط دولار]]+Table1[[#This Row],[مدين دولار]]-Table1[[#This Row],[دائن دولار]]","v":0}]
["STD-73",null,null,null,null,{"$f":"SUMIFS(المقبوضات!$I:$I,المقبوضات!$E:$E,'بيانات الطلاب'!F$2,المقبوضات!$B:$B,'بيانات الطلاب'!$B75)","v":0},{"$f":"SUMIFS(المقبوضات!$I:$I,المقبوضات!$E:$E,'بيانات الطلاب'!G$2,المقبوضات!$B:$B,'بيانات الطلاب'!$B75)","v":0},{"$f":"Table1[[#This Row],[القسط لبناني]]+Table1[[#This Row],[مدين لبناني]]-Table1[[#This Row],[دائن لبناني]]","v":0},null,{"$f":"SUMIFS(المقبوضات!$I:$I,المقبوضات!$E:$E,'بيانات الطلاب'!J$2,المقبوضات!$B:$B,'بيانات الطلاب'!$B75)","v":0},{"$f":"SUMIFS(المقبوضات!$I:$I,المقبوضات!$E:$E,'بيانات الطلاب'!K$2,المقبوضات!$B:$B,'بيانات الطلاب'!$B75)","v":0},{"$f":"Table1[[#This Row],[القسط دولار]]+Table1[[#This Row],[مدين دولار]]-Table1[[#This Row],[دائن دولار]]","v":0}]
["STD-74",null,null,null,null,{"$f":"SUMIFS(المقبوضات!$I:$I,المقبوضات!$E:$E,'بيانات الطلاب'!F$2,المقبوضات!$B:$B,'بيانات الطلاب'!$B76)","v":0},{"$f":"SUMIFS(المقبوضات!$I:$I,المقبوضات!$E:$E,'بيانات الطلاب'!G$2,المقبوضات!$B:$B,'بيانات الطلاب'!$B76)","v":0},{"$f":"Table1[[#This Row],[القسط لبناني]]+Table1[[#This Row],[مدين لبناني]]-Table1[[#This Row],[دائن لبناني]]","v":0},null,{"$f":"SUMIFS(المقبوضات!$I:$I,المقبوضات!$E:$E,'بيانات الطلاب'!J$2,المقبوضات!$B:$B,'بيانات الطلاب'!$B76)","v":0},{"$f":"SUMIFS(المقبوضات!$I:$I,المقبوضات!$E:$E,'بيانات الطلاب'!K$2,المقبوضات!$B:$B,'بيانات الطلاب'!$B76)","v":0},{"$f":"Table1[[#This Row],[القسط دولار]]+Table1[[#This Row],[مدين دولار]]-Table1[[#This Row],[دائن دولار]]","v":0}]
["STD-75",null,null,null,null,{"$f":"SUMIFS(المقبوضات!$I:$I,المقبوضات!$E:$E,'بيانات الطلاب'!F$2,المقبوضات!$B:$B,'بيانات الطلاب'!$B77)","v":0},{"$f":"SUMIFS(المقبوضات!$I:$I,المقبوضات!$E:$E,'بيانات الطلاب'!G$2,المقبوضات!$B:$B,'بيانات الطلاب'!$B77)","v":0},{"$f":"Table1[[#This Row],[القسط لبناني]]+Table1[[#This Row],[مدين لبناني]]-Table1[[#This Row],[دائن لبناني]]","v":0},null,{"$f":"SUMIFS(المقبوضات!$I:$I,المقبوضات!$E:$E,'بيانات الطلاب'!J$2,المقبوضات!$B:$B,'بيانات الطلاب'!$B77)","v":0},{"$f":"SUMIFS(المقبوضات!$I:$I,المقبوضات!$E:$E,'بيانات الطلاب'!K$2,المقبوضات!$B:$B,'بيانات الطلاب'!$B77)","v":0},{"$f":"Table1[[#This Row],[القسط دولار]]+Table1[[#This Row],[مدين دولار]]-Table1[[#This Row],[دائن دولار]]","v":0}]
["STD-76",null,null,null,null,{"$f":"SUMIFS(المقبوضات!$I:$I,المقبوضات!$E:$E,'بيانات الطلاب'!F$2,المقبوضات!$B:$B,'بيانات الطلاب'!$B78)","v":0},{"$f":"SUMIFS(المقبوضات!$I:$I,المقبوضات!$E:$E,'بيانات الطلاب'!G$2,المقبوضات!$B:$B,'بيانات الطلاب'!$B78)","v":0},{"$f":"Table1[[#This Row],[القسط لبناني]]+Table1[[#This Row],[مدين لبناني]]-Table1[[#This Row],[دائن لبناني]]","v":0},null,{"$f":"SUMIFS(المقبوضات!$I:$I,المقبوضات!$E:$E,'بيانات الطلاب'!J$2,المقبوضات!$B:$B,'بيانات الطلاب'!$B78)","v":0},{"$f":"SUMIFS(المقبوضات!$I:$I,المقبوضات!$E:$E,'بيانات الطلاب'!K$2,المقبوضات!$B:$B,'بيانات الطلاب'!$B78)","v":0},{"$f":"Table1[[#This Row],[القسط دولار]]+Table1[[#This Row],[مدين دولار]]-Table1[[#This Row],[دائن دولار]]","v":0}]
["STD-77",null,null,null,null,{"$f":"SUMIFS(المقبوضات!$I:$I,المقبوضات!$E:$E,'بيانات الطلاب'!F$2,المقبوضات!$B:$B,'بيانات الطلاب'!$B79)","v":0},{"$f":"SUMIFS(المقبوضات!$I:$I,المقبوضات!$E:$E,'بيانات الطلاب'!G$2,المقبوضات!$B:$B,'بيانات الطلاب'!$B79)","v":0},{"$f":"Table1[[#This Row],[القسط لبناني]]+Table1[[#This Row],[مدين لبناني]]-Table1[[#This Row],[دائن لبناني]]","v":0},null,{"$f":"SUMIFS(المقبوضات!$I:$I,المقبوضات!$E:$E,'بيانات الطلاب'!J$2,المقبوضات!$B:$B,'بيانات الطلاب'!$B79)","v":0},{"$f":"SUMIFS(المقبوضات!$I:$I,المقبوضات!$E:$E,'بيانات الطلاب'!K$2,المقبوضات!$B:$B,'بيانات الطلاب'!$B79)","v":0},{"$f":"Table1[[#This Row],[القسط دولار]]+Table1[[#This Row],[مدين دولار]]-Table1[[#This Row],[دائن دولار]]","v":0}]
["STD-78",null,null,null,null,{"$f":"SUMIFS(المقبوضات!$I:$I,المقبوضات!$E:$E,'بيانات الطلاب'!F$2,المقبوضات!$B:$B,'بيانات الطلاب'!$B80)","v":0},{"$f":"SUMIFS(المقبوضات!$I:$I,المقبوضات!$E:$E,'بيانات الطلاب'!G$2,المقبوضات!$B:$B,'بيانات الطلاب'!$B80)","v":0},{"$f":"Table1[[#This Row],[القسط لبناني]]+Table1[[#This Row],[مدين لبناني]]-Table1[[#This Row],[دائن لبناني]]","v":0},null,{"$f":"SUMIFS(المقبوضات!$I:$I,المقبوضات!$E:$E,'بيانات الطلاب'!J$2,المقبوضات!$B:$B,'بيانات الطلاب'!$B80)","v":0},{"$f":"SUMIFS(المقبوضات!$I:$I,المقبوضات!$E:$E,'بيانات الطلاب'!K$2,المقبوضات!$B:$B,'بيانات الطلاب'!$B80)","v":0},{"$f":"Table1[[#This Row],[القسط دولار]]+Table1[[#This Row],[مدين دولار]]-Table1[[#This Row],[دائن دولار]]","v":0}]
["STD-79",null,null,null,null,{"$f":"SUMIFS(المقبوضات!$I:$I,المقبوضات!$E:$E,'بيانات الطلاب'!F$2,المقبوضات!$B:$B,'بيانات الطلاب'!$B81)","v":0},{"$f":"SUMIFS(المقبوضات!$I:$I,المقبوضات!$E:$E,'بيانات الطلاب'!G$2,المقبوضات!$B:$B,'بيانات الطلاب'!$B81)","v":0},{"$f":"Table1[[#This Row],[القسط لبناني]]+Table1[[#This Row],[مدين لبناني]]-Table1[[#This Row],[دائن لبناني]]","v":0},null,{"$f":"SUMIFS(المقبوضات!$I:$I,المقبوضات!$E:$E,'بيانات الطلاب'!J$2,المقبوضات!$B:$B,'بيانات الطلاب'!$B81)","v":0},{"$f":"SUMIFS(المقبوضات!$I:$I,المقبوضات!$E:$E,'بيانات الطلاب'!K$2,المقبوضات!$B:$B,'بيانات الطلاب'!$B81)","v":0},{"$f":"Table1[[#This Row],[القسط دولار]]+Table1[[#This Row],[مدين دولار]]-Table1[[#This Row],[دائن دولار]]","v":0}]
["STD-80",null,null,null,null,{"$f":"SUMIFS(المقبوضات!$I:$I,المقبوضات!$E:$E,'بيانات الطلاب'!F$2,المقبوضات!$B:$B,'بيانات الطلاب'!$B82)","v":0},{"$f":"SUMIFS(المقبوضات!$I:$I,المقبوضات!$E:$E,'بيانات الطلاب'!G$2,المقبوضات!$B:$B,'بيانات الطلاب'!$B82)","v":0},{"$f":"Table1[[#This Row],[القسط لبناني]]+Table1[[#This Row],[مدين لبناني]]-Table1[[#This Row],[دائن لبناني]]","v":0},null,{"$f":"SUMIFS(المقبوضات!$I:$I,المقبوضات!$E:$E,'بيانات الطلاب'!J$2,المقبوضات!$B:$B,'بيانات الطلاب'!$B82)","v":0},{"$f":"SUMIFS(المقبوضات!$I:$I,المقبوضات!$E:$E,'بيانات الطلاب'!K$2,المقبوضات!$B:$B,'بيانات الطلاب'!$B82)","v":0},{"$f":"Table1[[#This Row],[القسط دولار]]+Table1[[#This Row],[مدين دولار]]-Table1[[#This Row],[دائن دولار]]","v":0}]
["STD-81",null,null,null,null,{"$f":"SUMIFS(المقبوضات!$I:$I,المقبوضات!$E:$E,'بيانات الطلاب'!F$2,المقبوضات!$B:$B,'بيانات الطلاب'!$B83)","v":0},{"$f":"SUMIFS(المقبوضات!$I:$I,المقبوضات!$E:$E,'بيانات الطلاب'!G$2,المقبوضات!$B:$B,'بيانات الطلاب'!$B83)","v":0},{"$f":"Table1[[#This Row],[القسط لبناني]]+Table1[[#This Row],[مدين لبناني]]-Table1[[#This Row],[دائن لبناني]]","v":0},null,{"$f":"SUMIFS(المقبوضات!$I:$I,المقبوضات!$E:$E,'بيانات الطلاب'!J$2,المقبوضات!$B:$B,'بيانات الطلاب'!$B83)","v":0},{"$f":"SUMIFS(المقبوضات!$I:$I,المقبوضات!$E:$E,'بيانات الطلاب'!K$2,المقبوضات!$B:$B,'بيانات الطلاب'!$B83)","v":0},{"$f":"Table1[[#This Row],[القسط دولار]]+Table1[[#This Row],[مدين دولار]]-Table1[[#This Row],[دائن دولار]]","v":0}]
["STD-82",null,null,null,null,{"$f":"SUMIFS(المقبوضات!$I:$I,المقبوضات!$E:$E,'بيانات الطلاب'!F$2,المقبوضات!$B:$B,'بيانات الطلاب'!$B84)","v":0},{"$f":"SUMIFS(المقبوضات!$I:$I,المقبوضات!$E:$E,'بيانات الطلاب'!G$2,المقبوضات!$B:$B,'بيانات الطلاب'!$B84)","v":0},{"$f":"Table1[[#This Row],[القسط لبناني]]+Table1[[#This Row],[مدين لبناني]]-Table1[[#This Row],[دائن لبناني]]","v":0},null,{"$f":"SUMIFS(المقبوضات!$I:$I,المقبوضات!$E:$E,'بيانات الطلاب'!J$2,المقبوضات!$B:$B,'بيانات الطلاب'!$B84)","v":0},{"$f":"SUMIFS(المقبوضات!$I:$I,المقبوضات!$E:$E,'بيانات الطلاب'!K$2,المقبوضات!$B:$B,'بيانات الطلاب'!$B84)","v":0},{"$f":"Table1[[#This Row],[القسط دولار]]+Table1[[#This Row],[مدين دولار]]-Table1[[#This Row],[دائن دولار]]","v":0}]
["STD-83",null,null,null,null,{"$f":"SUMIFS(المقبوضات!$I:$I,المقبوضات!$E:$E,'بيانات الطلاب'!F$2,المقبوضات!$B:$B,'بيانات الطلاب'!$B85)","v":0},{"$f":"SUMIFS(المقبوضات!$I:$I,المقبوضات!$E:$E,'بيانات الطلاب'!G$2,المقبوضات!$B:$B,'بيانات الطلاب'!$B85)","v":0},{"$f":"Table1[[#This Row],[القسط لبناني]]+Table1[[#This Row],[مدين لبناني]]-Table1[[#This Row],[دائن لبناني]]","v":0},null,{"$f":"SUMIFS(المقبوضات!$I:$I,المقبوضات!$E:$E,'بيانات الطلاب'!J$2,المقبوضات!$B:$B,'بيانات الطلاب'!$B85)","v":0},{"$f":"SUMIFS(المقبوضات!$I:$I,المقبوضات!$E:$E,'بيانات الطلاب'!K$2,المقبوضات!$B:$B,'بيانات الطلاب'!$B85)","v":0},{"$f":"Table1[[#This Row],[القسط دولار]]+Table1[[#This Row],[مدين دولار]]-Table1[[#This Row],[دائن دولار]]","v":0}]
["STD-84",null,null,null,null,{"$f":"SUMIFS(المقبوضات!$I:$I,المقبوضات!$E:$E,'بيانات الطلاب'!F$2,المقبوضات!$B:$B,'بيانات الطلاب'!$B86)","v":0},{"$f":"SUMIFS(المقبوضات!$I:$I,المقبوضات!$E:$E,'بيانات الطلاب'!G$2,المقبوضات!$B:$B,'بيانات الطلاب'!$B86)","v":0},{"$f":"Table1[[#This Row],[القسط لبناني]]+Table1[[#This Row],[مدين لبناني]]-Table1[[#This Row],[دائن لبناني]]","v":0},null,{"$f":"SUMIFS(المقبوضات!$I:$I,المقبوضات!$E:$E,'بيانات الطلاب'!J$2,المقبوضات!$B:$B,'بيانات الطلاب'!$B86)","v":0},{"$f":"SUMIFS(المقبوضات!$I:$I,المقبوضات!$E:$E,'بيانات الطلاب'!K$2,المقبوضات!$B:$B,'بيانات الطلاب'!$B86)","v":0},{"$f":"Table1[[#This Row],[القسط دولار]]+Table1[[#This Row],[مدين دولار]]-Table1[[#This Row],[دائن دولار]]","v":0}]
["STD-85",null,null,null,null,{"$f":"SUMIFS(المقبوضات!$I:$I,المقبوضات!$E:$E,'بيانات الطلاب'!F$2,المقبوضات!$B:$B,'بيانات الطلاب'!$B87)","v":0},{"$f":"SUMIFS(المقبوضات!$I:$I,المقبوضات!$E:$E,'بيانات الطلاب'!G$2,المقبوضات!$B:$B,'بيانات الطلاب'!$B87)","v":0},{"$f":"Table1[[#This Row],[القسط لبناني]]+Table1[[#This Row],[مدين لبناني]]-Table1[[#This Row],[دائن لبناني]]","v":0},null,{"$f":"SUMIFS(المقبوضات!$I:$I,المقبوضات!$E:$E,'بيانات الطلاب'!J$2,المقبوضات!$B:$B,'بيانات الطلاب'!$B87)","v":0},{"$f":"SUMIFS(المقبوضات!$I:$I,المقبوضات!$E:$E,'بيانات الطلاب'!K$2,المقبوضات!$B:$B,'بيانات الطلاب'!$B87)","v":0},{"$f":"Table1[[#This Row],[القسط دولار]]+Table1[[#This Row],[مدين دولار]]-Table1[[#This Row],[دائن دولار]]","v":0}]
["STD-86",null,null,null,null,{"$f":"SUMIFS(المقبوضات!$I:$I,المقبوضات!$E:$E,'بيانات الطلاب'!F$2,المقبوضات!$B:$B,'بيانات الطلاب'!$B88)","v":0},{"$f":"SUMIFS(المقبوضات!$I:$I,المقبوضات!$E:$E,'بيانات الطلاب'!G$2,المقبوضات!$B:$B,'بيانات الطلاب'!$B88)","v":0},{"$f":"Table1[[#This Row],[القسط لبناني]]+Table1[[#This Row],[مدين لبناني]]-Table1[[#This Row],[دائن لبناني]]","v":0},null,{"$f":"SUMIFS(المقبوضات!$I:$I,المقبوضات!$E:$E,'بيانات الطلاب'!J$2,المقبوضات!$B:$B,'بيانات الطلاب'!$B88)","v":0},{"$f":"SUMIFS(المقبوضات!$I:$I,المقبوضات!$E:$E,'بيانات الطلاب'!K$2,المقبوضات!$B:$B,'بيانات الطلاب'!$B88)","v":0},{"$f":"Table1[[#This Row],[القسط دولار]]+Table1[[#This Row],[مدين دولار]]-Table1[[#This Row],[دائن دولار]]","v":0}]
["STD-87",null,null,null,null,{"$f":"SUMIFS(المقبوضات!$I:$I,المقبوضات!$E:$E,'بيانات الطلاب'!F$2,المقبوضات!$B:$B,'بيانات الطلاب'!$B89)","v":0},{"$f":"SUMIFS(المقبوضات!$I:$I,المقبوضات!$E:$E,'بيانات الطلاب'!G$2,المقبوضات!$B:$B,'بيانات الطلاب'!$B89)","v":0},{"$f":"Table1[[#This Row],[القسط لبناني]]+Table1[[#This Row],[مدين لبناني]]-Table1[[#This Row],[دائن لبناني]]","v":0},null,{"$f":"SUMIFS(المقبوضات!$I:$I,المقبوضات!$E:$E,'بيانات الطلاب'!J$2,المقبوضات!$B:$B,'بيانات الطلاب'!$B89)","v":0},{"$f":"SUMIFS(المقبوضات!$I:$I,المقبوضات!$E:$E,'بيانات الطلاب'!K$2,المقبوضات!$B:$B,'بيانات الطلاب'!$B89)","v":0},{"$f":"Table1[[#This Row],[القسط دولار]]+Table1[[#This Row],[مدين دولار]]-Table1[[#This Row],[دائن دولار]]","v":0}]
["STD-88",null,null,null,null,{"$f":"SUMIFS(المقبوضات!$I:$I,المقبوضات!$E:$E,'بيانات الطلاب'!F$2,المقبوضات!$B:$B,'بيانات الطلاب'!$B90)","v":0},{"$f":"SUMIFS(المقبوضات!$I:$I,المقبوضات!$E:$E,'بيانات الطلاب'!G$2,المقبوضات!$B:$B,'بيانات الطلاب'!$B90)","v":0},{"$f":"Table1[[#This Row],[القسط لبناني]]+Table1[[#This Row],[مدين لبناني]]-Table1[[#This Row],[دائن لبناني]]","v":0},null,{"$f":"SUMIFS(المقبوضات!$I:$I,المقبوضات!$E:$E,'بيانات الطلاب'!J$2,المقبوضات!$B:$B,'بيانات الطلاب'!$B90)","v":0},{"$f":"SUMIFS(المقبوضات!$I:$I,المقبوضات!$E:$E,'بيانات الطلاب'!K$2,المقبوضات!$B:$B,'بيانات الطلاب'!$B90)","v":0},{"$f":"Table1[[#This Row],[القسط دولار]]+Table1[[#This Row],[مدين دولار]]-Table1[[#This Row],[دائن دولار]]","v":0}]
["STD-89",null,null,null,null,{"$f":"SUMIFS(المقبوضات!$I:$I,المقبوضات!$E:$E,'بيانات الطلاب'!F$2,المقبوضات!$B:$B,'بيانات الطلاب'!$B91)","v":0},{"$f":"SUMIFS(المقبوضات!$I:$I,المقبوضات!$E:$E,'بيانات الطلاب'!G$2,المقبوضات!$B:$B,'بيانات الطلاب'!$B91)","v":0},{"$f":"Table1[[#This Row],[القسط لبناني]]+Table1[[#This Row],[مدين لبناني]]-Table1[[#This Row],[دائن لبناني]]","v":0},null,{"$f":"SUMIFS(المقبوضات!$I:$I,المقبوضات!$E:$E,'بيانات الطلاب'!J$2,المقبوضات!$B:$B,'بيانات الطلاب'!$B91)","v":0},{"$f":"SUMIFS(المقبوضات!$I:$I,المقبوضات!$E:$E,'بيانات الطلاب'!K$2,المقبوضات!$B:$B,'بيانات الطلاب'!$B91)","v":0},{"$f":"Table1[[#This Row],[القسط دولار]]+Table1[[#This Row],[مدين دولار]]-Table1[[#This Row],[دائن دولار]]","v":0}]
["STD-90",null,null,null,null,{"$f":"SUMIFS(المقبوضات!$I:$I,المقبوضات!$E:$E,'بيانات الطلاب'!F$2,المقبوضات!$B:$B,'بيانات الطلاب'!$B92)","v":0},{"$f":"SUMIFS(المقبوضات!$I:$I,المقبوضات!$E:$E,'بيانات الطلاب'!G$2,المقبوضات!$B:$B,'بيانات الطلاب'!$B92)","v":0},{"$f":"Table1[[#This Row],[القسط لبناني]]+Table1[[#This Row],[مدين لبناني]]-Table1[[#This Row],[دائن لبناني]]","v":0},null,{"$f":"SUMIFS(المقبوضات!$I:$I,المقبوضات!$E:$E,'بيانات الطلاب'!J$2,المقبوضات!$B:$B,'بيانات الطلاب'!$B92)","v":0},{"$f":"SUMIFS(المقبوضات!$I:$I,المقبوضات!$E:$E,'بيانات الطلاب'!K$2,المقبوضات!$B:$B,'بيانات الطلاب'!$B92)","v":0},{"$f":"Table1[[#This Row],[القسط دولار]]+Table1[[#This Row],[مدين دولار]]-Table1[[#This Row],[دائن دولار]]","v":0}]
["STD-91",null,null,null,null,{"$f":"SUMIFS(المقبوضات!$I:$I,المقبوضات!$E:$E,'بيانات الطلاب'!F$2,المقبوضات!$B:$B,'بيانات الطلاب'!$B93)","v":0},{"$f":"SUMIFS(المقبوضات!$I:$I,المقبوضات!$E:$E,'بيانات الطلاب'!G$2,المقبوضات!$B:$B,'بيانات الطلاب'!$B93)","v":0},{"$f":"Table1[[#This Row],[القسط لبناني]]+Table1[[#This Row],[مدين لبناني]]-Table1[[#This Row],[دائن لبناني]]","v":0},null,{"$f":"SUMIFS(المقبوضات!$I:$I,المقبوضات!$E:$E,'بيانات الطلاب'!J$2,المقبوضات!$B:$B,'بيانات الطلاب'!$B93)","v":0},{"$f":"SUMIFS(المقبوضات!$I:$I,المقبوضات!$E:$E,'بيانات الطلاب'!K$2,المقبوضات!$B:$B,'بيانات الطلاب'!$B93)","v":0},{"$f":"Table1[[#This Row],[القسط دولار]]+Table1[[#This Row],[مدين دولار]]-Table1[[#This Row],[دائن دولار]]","v":0}]
["STD-92",null,null,null,null,{"$f":"SUMIFS(المقبوضات!$I:$I,المقبوضات!$E:$E,'بيانات الطلاب'!F$2,المقبوضات!$B:$B,'بيانات الطلاب'!$B94)","v":0},{"$f":"SUMIFS(المقبوضات!$I:$I,المقبوضات!$E:$E,'بيانات الطلاب'!G$2,المقبوضات!$B:$B,'بيانات الطلاب'!$B94)","v":0},{"$f":"Table1[[#This Row],[القسط لبناني]]+Table1[[#This Row],[مدين لبناني]]-Table1[[#This Row],[دائن لبناني]]","v":0},null,{"$f":"SUMIFS(المقبوضات!$I:$I,المقبوضات!$E:$E,'بيانات الطلاب'!J$2,المقبوضات!$B:$B,'بيانات الطلاب'!$B94)","v":0},{"$f":"SUMIFS(المقبوضات!$I:$I,المقبوضات!$E:$E,'بيانات الطلاب'!K$2,المقبوضات!$B:$B,'بيانات الطلاب'!$B94)","v":0},{"$f":"Table1[[#This Row],[القسط دولار]]+Table1[[#This Row],[مدين دولار]]-Table1[[#This Row],[دائن دولار]]","v":0}]
["STD-93",null,null,null,null,{"$f":"SUMIFS(المقبوضات!$I:$I,المقبوضات!$E:$E,'بيانات الطلاب'!F$2,المقبوضات!$B:$B,'بيانات الطلاب'!$B95)","v":0},{"$f":"SUMIFS(المقبوضات!$I:$I,المقبوضات!$E:$E,'بيانات الطلاب'!G$2,المقبوضات!$B:$B,'بيانات الطلاب'!$B95)","v":0},{"$f":"Table1[[#This Row],[القسط لبناني]]+Table1[[#This Row],[مدين لبناني]]-Table1[[#This Row],[دائن لبناني]]","v":0},null,{"$f":"SUMIFS(المقبوضات!$I:$I,المقبوضات!$E:$E,'بيانات الطلاب'!J$2,المقبوضات!$B:$B,'بيانات الطلاب'!$B95)","v":0},{"$f":"SUMIFS(المقبوضات!$I:$I,المقبوضات!$E:$E,'بيانات الطلاب'!K$2,المقبوضات!$B:$B,'بيانات الطلاب'!$B95)","v":0},{"$f":"Table1[[#This Row],[القسط دولار]]+Table1[[#This Row],[مدين دولار]]-Table1[[#This Row],[دائن دولار]]","v":0}]
["STD-94",null,null,null,null,{"$f":"SUMIFS(المقبوضات!$I:$I,المقبوضات!$E:$E,'بيانات الطلاب'!F$2,المقبوضات!$B:$B,'بيانات الطلاب'!$B96)","v":0},{"$f":"SUMIFS(المقبوضات!$I:$I,المقبوضات!$E:$E,'بيانات الطلاب'!G$2,المقبوضات!$B:$B,'بيانات الطلاب'!$B96)","v":0},{"$f":"Table1[[#This Row],[القسط لبناني]]+Table1[[#This Row],[مدين لبناني]]-Table1[[#This Row],[دائن لبناني]]","v":0},null,{"$f":"SUMIFS(المقبوضات!$I:$I,المقبوضات!$E:$E,'بيانات الطلاب'!J$2,المقبوضات!$B:$B,'بيانات الطلاب'!$B96)","v":0},{"$f":"SUMIFS(المقبوضات!$I:$I,المقبوضات!$E:$E,'بيانات الطلاب'!K$2,المقبوضات!$B:$B,'بيانات الطلاب'!$B96)","v":0},{"$f":"Table1[[#This Row],[القسط دولار]]+Table1[[#This Row],[مدين دولار]]-Table1[[#This Row],[دائن دولار]]","v":0}]
["STD-95",null,null,null,null,{"$f":"SUMIFS(المقبوضات!$I:$I,المقبوضات!$E:$E,'بيانات الطلاب'!F$2,المقبوضات!$B:$B,'بيانات الطلاب'!$B97)","v":0},{"$f":"SUMIFS(المقبوضات!$I:$I,المقبوضات!$E:$E,'بيانات الطلاب'!G$2,المقبوضات!$B:$B,'بيانات الطلاب'!$B97)","v":0},{"$f":"Table1[[#This Row],[القسط لبناني]]+Table1[[#This Row],[مدين لبناني]]-Table1[[#This Row],[دائن لبناني]]","v":0},null,{"$f":"SUMIFS(المقبوضات!$I:$I,المقبوضات!$E:$E,'بيانات الطلاب'!J$2,المقبوضات!$B:$B,'بيانات الطلاب'!$B97)","v":0},{"$f":"SUMIFS(المقبوضات!$I:$I,المقبوضات!$E:$E,'بيانات الطلاب'!K$2,المقبوضات!$B:$B,'بيانات الطلاب'!$B97)","v":0},{"$f":"Table1[[#This Row],[القسط دولار]]+Table1[[#This Row],[مدين دولار]]-Table1[[#This Row],[دائن دولار]]","v":0}]
["STD-96",null,null,null,null,{"$f":"SUMIFS(المقبوضات!$I:$I,المقبوضات!$E:$E,'بيانات الطلاب'!F$2,المقبوضات!$B:$B,'بيانات الطلاب'!$B98)","v":0},{"$f":"SUMIFS(المقبوضات!$I:$I,المقبوضات!$E:$E,'بيانات الطلاب'!G$2,المقبوضات!$B:$B,'بيانات الطلاب'!$B98)","v":0},{"$f":"Table1[[#This Row],[القسط لبناني]]+Table1[[#This Row],[مدين لبناني]]-Table1[[#This Row],[دائن لبناني]]","v":0},null,{"$f":"SUMIFS(المقبوضات!$I:$I,المقبوضات!$E:$E,'بيانات الطلاب'!J$2,المقبوضات!$B:$B,'بيانات الطلاب'!$B98)","v":0},{"$f":"SUMIFS(المقبوضات!$I:$I,المقبوضات!$E:$E,'بيانات الطلاب'!K$2,المقبوضات!$B:$B,'بيانات الطلاب'!$B98)","v":0},{"$f":"Table1[[#This Row],[القسط دولار]]+Table1[[#This Row],[مدين دولار]]-Table1[[#This Row],[دائن دولار]]","v":0}]
[{"$f":"\"STD\"&\"-\"&(ROW(A99)-2)","v":"STD-97"},null,null,null,null,{"$f":"SUMIFS(المقبوضات!$I:$I,المقبوضات!$E:$E,'بيانات الطلاب'!F$2,المقبوضات!$B:$B,'بيانات الطلاب'!$B99)","v":0},{"$f":"SUMIFS(المقبوضات!$I:$I,المقبوضات!$E:$E,'بيانات الطلاب'!G$2,المقبوضات!$B:$B,'بيانات الطلاب'!$B99)","v":0},{"$f":"Table1[[#This Row],[القسط لبناني]]+Table1[[#This Row],[مدين لبناني]]-Table1[[#This Row],[دائن لبناني]]","v":0},null,{"$f":"SUMIFS(المقبوضات!$I:$I,المقبوضات!$E:$E,'بيانات الطلاب'!J$2,المقبوضات!$B:$B,'بيانات الطلاب'!$B99)","v":0},{"$f":"SUMIFS(المقبوضات!$I:$I,المقبوضات!$E:$E,'بيانات الطلاب'!K$2,المقبوضات!$B:$B,'بيانات الطلاب'!$B99)","v":0},{"$f":"Table1[[#This Row],[القسط دولار]]+Table1[[#This Row],[مدين دولار]]-Table1[[#This Row],[دائن دولار]]","v":0}]
["STD-98",null,null,null,null,{"$f":"SUMIFS(المقبوضات!$I:$I,المقبوضات!$E:$E,'بيانات الطلاب'!F$2,المقبوضات!$B:$B,'بيانات الطلاب'!$B100)","v":0},{"$f":"SUMIFS(المقبوضات!$I:$I,المقبوضات!$E:$E,'بيانات الطلاب'!G$2,المقبوضات!$B:$B,'بيانات الطلاب'!$B100)","v":0},{"$f":"Table1[[#This Row],[القسط لبناني]]+Table1[[#This Row],[مدين لبناني]]-Table1[[#This Row],[دائن لبناني]]","v":0},null,{"$f":"SUMIFS(المقبوضات!$I:$I,المقبوضات!$E:$E,'بيانات الطلاب'!J$2,المقبوضات!$B:$B,'بيانات الطلاب'!$B100)","v":0},{"$f":"SUMIFS(المقبوضات!$I:$I,المقبوضات!$E:$E,'بيانات الطلاب'!K$2,المقبوضات!$B:$B,'بيانات الطلاب'!$B100)","v":0},{"$f":"Table1[[#This Row],[القسط دولار]]+Table1[[#This Row],[مدين دولار]]-Table1[[#This Row],[دائن دولار]]","v":0}]
["STD-99",null,null,null,null,{"$f":"SUMIFS(المقبوضات!$I:$I,المقبوضات!$E:$E,'بيانات الطلاب'!F$2,المقبوضات!$B:$B,'بيانات الطلاب'!$B101)","v":0},{"$f":"SUMIFS(المقبوضات!$I:$I,المقبوضات!$E:$E,'بيانات الطلاب'!G$2,المقبوضات!$B:$B,'بيانات الطلاب'!$B101)","v":0},{"$f":"Table1[[#This Row],[القسط لبناني]]+Table1[[#This Row],[مدين لبناني]]-Table1[[#This Row],[دائن لبناني]]","v":0},null,{"$f":"SUMIFS(المقبوضات!$I:$I,المقبوضات!$E:$E,'بيانات الطلاب'!J$2,المقبوضات!$B:$B,'بيانات الطلاب'!$B101)","v":0},{"$f":"SUMIFS(المقبوضات!$I:$I,المقبوضات!$E:$E,'بيانات الطلاب'!K$2,المقبوضات!$B:$B,'بيانات الطلاب'!$B101)","v":0},{"$f":"Table1[[#This Row],[القسط دولار]]+Table1[[#This Row],[مدين دولار]]-Table1[[#This Row],[دائن دولار]]","v":0}]
["STD-100",null,null,null,null,{"$f":"SUMIFS(المقبوضات!$I:$I,المقبوضات!$E:$E,'بيانات الطلاب'!F$2,المقبوضات!$B:$B,'بيانات الطلاب'!$B102)","v":0},{"$f":"SUMIFS(المقبوضات!$I:$I,المقبوضات!$E:$E,'بيانات الطلاب'!G$2,المقبوضات!$B:$B,'بيانات الطلاب'!$B102)","v":0},{"$f":"Table1[[#This Row],[القسط لبناني]]+Table1[[#This Row],[مدين لبناني]]-Table1[[#This Row],[دائن لبناني]]","v":0},null,{"$f":"SUMIFS(المقبوضات!$I:$I,المقبوضات!$E:$E,'بيانات الطلاب'!J$2,المقبوضات!$B:$B,'بيانات الطلاب'!$B102)","v":0},{"$f":"SUMIFS(المقبوضات!$I:$I,المقبوضات!$E:$E,'بيانات الطلاب'!K$2,المقبوضات!$B:$B,'بيانات الطلاب'!$B102)","v":0},{"$f":"Table1[[#This Row],[القسط دولار]]+Table1[[#This Row],[مدين دولار]]-Table1[[#This Row],[دائن دولار]]","v":0}]
["STD-101",null,null,null,null,{"$f":"SUMIFS(المقبوضات!$I:$I,المقبوضات!$E:$E,'بيانات الطلاب'!F$2,المقبوضات!$B:$B,'بيانات الطلاب'!$B103)","v":0},{"$f":"SUMIFS(المقبوضات!$I:$I,المقبوضات!$E:$E,'بيانات الطلاب'!G$2,المقبوضات!$B:$B,'بيانات الطلاب'!$B103)","v":0},{"$f":"Table1[[#This Row],[القسط لبناني]]+Table1[[#This Row],[مدين لبناني]]-Table1[[#This Row],[دائن لبناني]]","v":0},null,{"$f":"SUMIFS(المقبوضات!$I:$I,المقبوضات!$E:$E,'بيانات الطلاب'!J$2,المقبوضات!$B:$B,'بيانات الطلاب'!$B103)","v":0},{"$f":"SUMIFS(المقبوضات!$I:$I,المقبوضات!$E:$E,'بيانات الطلاب'!K$2,المقبوضات!$B:$B,'بيانات الطلاب'!$B103)","v":0},{"$f":"Table1[[#This Row],[القسط دولار]]+Table1[[#This Row],[مدين دولار]]-Table1[[#This Row],[دائن دولار]]","v":0}]
["STD-102",null,null,null,null,{"$f":"SUMIFS(المقبوضات!$I:$I,المقبوضات!$E:$E,'بيانات الطلاب'!F$2,المقبوضات!$B:$B,'بيانات الطلاب'!$B104)","v":0},{"$f":"SUMIFS(المقبوضات!$I:$I,المقبوضات!$E:$E,'بيانات الطلاب'!G$2,المقبوضات!$B:$B,'بيانات الطلاب'!$B104)","v":0},{"$f":"Table1[[#This Row],[القسط لبناني]]+Table1[[#This Row],[مدين لبناني]]-Table1[[#This Row],[دائن لبناني]]","v":0},null,{"$f":"SUMIFS(المقبوضات!$I:$I,المقبوضات!$E:$E,'بيانات الطلاب'!J$2,المقبوضات!$B:$B,'بيانات الطلاب'!$B104)","v":0},{"$f":"SUMIFS(المقبوضات!$I:$I,المقبوضات!$E:$E,'بيانات الطلاب'!K$2,المقبوضات!$B:$B,'بيانات الطلاب'!$B104)","v":0},{"$f":"Table1[[#This Row],[القسط دولار]]+Table1[[#This Row],[مدين دولار]]-Table1[[#This Row],[دائن دولار]]","v":0}]
["STD-103",null,null,null,null,{"$f":"SUMIFS(المقبوضات!$I:$I,المقبوضات!$E:$E,'بيانات الطلاب'!F$2,المقبوضات!$B:$B,'بيانات الطلاب'!$B105)","v":0},{"$f":"SUMIFS(المقبوضات!$I:$I,المقبوضات!$E:$E,'بيانات الطلاب'!G$2,المقبوضات!$B:$B,'بيانات الطلاب'!$B105)","v":0},{"$f":"Table1[[#This Row],[القسط لبناني]]+Table1[[#This Row],[مدين لبناني]]-Table1[[#This Row],[دائن لبناني]]","v":0},null,{"$f":"SUMIFS(المقبوضات!$I:$I,المقبوضات!$E:$E,'بيانات الطلاب'!J$2,المقبوضات!$B:$B,'بيانات الطلاب'!$B105)","v":0},{"$f":"SUMIFS(المقبوضات!$I:$I,المقبوضات!$E:$E,'بيانات الطلاب'!K$2,المقبوضات!$B:$B,'بيانات الطلاب'!$B105)","v":0},{"$f":"Table1[[#This Row],[القسط دولار]]+Table1[[#This Row],[مدين دولار]]-Table1[[#This Row],[دائن دولار]]","v":0}]
["STD-104",null,null,null,null,{"$f":"SUMIFS(المقبوضات!$I:$I,المقبوضات!$E:$E,'بيانات الطلاب'!F$2,المقبوضات!$B:$B,'بيانات الطلاب'!$B106)","v":0},{"$f":"SUMIFS(المقبوضات!$I:$I,المقبوضات!$E:$E,'بيانات الطلاب'!G$2,المقبوضات!$B:$B,'بيانات الطلاب'!$B106)","v":0},{"$f":"Table1[[#This Row],[القسط لبناني]]+Table1[[#This Row],[مدين لبناني]]-Table1[[#This Row],[دائن لبناني]]","v":0},null,{"$f":"SUMIFS(المقبوضات!$I:$I,المقبوضات!$E:$E,'بيانات الطلاب'!J$2,المقبوضات!$B:$B,'بيانات الطلاب'!$B106)","v":0},{"$f":"SUMIFS(المقبوضات!$I:$I,المقبوضات!$E:$E,'بيانات الطلاب'!K$2,المقبوضات!$B:$B,'بيانات الطلاب'!$B106)","v":0},{"$f":"Table1[[#This Row],[القسط دولار]]+Table1[[#This Row],[مدين دولار]]-Table1[[#This Row],[دائن دولار]]","v":0}]
["STD-105",null,null,null,null,{"$f":"SUMIFS(المقبوضات!$I:$I,المقبوضات!$E:$E,'بيانات الطلاب'!F$2,المقبوضات!$B:$B,'بيانات الطلاب'!$B107)","v":0},{"$f":"SUMIFS(المقبوضات!$I:$I,المقبوضات!$E:$E,'بيانات الطلاب'!G$2,المقبوضات!$B:$B,'بيانات الطلاب'!$B107)","v":0},{"$f":"Table1[[#This Row],[القسط لبناني]]+Table1[[#This Row],[مدين لبناني]]-Table1[[#This Row],[دائن لبناني]]","v":0},null,{"$f":"SUMIFS(المقبوضات!$I:$I,المقبوضات!$E:$E,'بيانات الطلاب'!J$2,المقبوضات!$B:$B,'بيانات الطلاب'!$B107)","v":0},{"$f":"SUMIFS(المقبوضات!$I:$I,المقبوضات!$E:$E,'بيانات الطلاب'!K$2,المقبوضات!$B:$B,'بيانات الطلاب'!$B107)","v":0},{"$f":"Table1[[#This Row],[القسط دولار]]+Table1[[#This Row],[مدين دولار]]-Table1[[#This Row],[دائن دولار]]","v":0}]
["STD-106",null,null,null,null,{"$f":"SUMIFS(المقبوضات!$I:$I,المقبوضات!$E:$E,'بيانات الطلاب'!F$2,المقبوضات!$B:$B,'بيانات الطلاب'!$B108)","v":0},{"$f":"SUMIFS(المقبوضات!$I:$I,المقبوضات!$E:$E,'بيانات الطلاب'!G$2,المقبوضات!$B:$B,'بيانات الطلاب'!$B108)","v":0},{"$f":"Table1[[#This Row],[القسط لبناني]]+Table1[[#This Row],[مدين لبناني]]-Table1[[#This Row],[دائن لبناني]]","v":0},null,{"$f":"SUMIFS(المقبوضات!$I:$I,المقبوضات!$E:$E,'بيانات الطلاب'!J$2,المقبوضات!$B:$B,'بيانات الطلاب'!$B108)","v":0},{"$f":"SUMIFS(المقبوضات!$I:$I,المقبوضات!$E:$E,'بيانات الطلاب'!K$2,المقبوضات!$B:$B,'بيانات الطلاب'!$B108)","v":0},{"$f":"Table1[[#This Row],[القسط دولار]]+Table1[[#This Row],[مدين دولار]]-Table1[[#This Row],[دائن دولار]]","v":0}]
["STD-107",null,null,null,null,{"$f":"SUMIFS(المقبوضات!$I:$I,المقبوضات!$E:$E,'بيانات الطلاب'!F$2,المقبوضات!$B:$B,'بيانات الطلاب'!$B109)","v":0},{"$f":"SUMIFS(المقبوضات!$I:$I,المقبوضات!$E:$E,'بيانات الطلاب'!G$2,المقبوضات!$B:$B,'بيانات الطلاب'!$B109)","v":0},{"$f":"Table1[[#This Row],[القسط لبناني]]+Table1[[#This Row],[مدين لبناني]]-Table1[[#This Row],[دائن لبناني]]","v":0},null,{"$f":"SUMIFS(المقبوضات!$I:$I,المقبوضات!$E:$E,'بيانات الطلاب'!J$2,المقبوضات!$B:$B,'بيانات الطلاب'!$B109)","v":0},{"$f":"SUMIFS(المقبوضات!$I:$I,المقبوضات!$E:$E,'بيانات الطلاب'!K$2,المقبوضات!$B:$B,'بيانات الطلاب'!$B109)","v":0},{"$f":"Table1[[#This Row],[القسط دولار]]+Table1[[#This Row],[مدين دولار]]-Table1[[#This Row],[دائن دولار]]","v":0}]
["STD-108",null,null,null,null,{"$f":"SUMIFS(المقبوضات!$I:$I,المقبوضات!$E:$E,'بيانات الطلاب'!F$2,المقبوضات!$B:$B,'بيانات الطلاب'!$B110)","v":0},{"$f":"SUMIFS(المقبوضات!$I:$I,المقبوضات!$E:$E,'بيانات الطلاب'!G$2,المقبوضات!$B:$B,'بيانات الطلاب'!$B110)","v":0},{"$f":"Table1[[#This Row],[القسط لبناني]]+Table1[[#This Row],[مدين لبناني]]-Table1[[#This Row],[دائن لبناني]]","v":0},null,{"$f":"SUMIFS(المقبوضات!$I:$I,المقبوضات!$E:$E,'بيانات الطلاب'!J$2,المقبوضات!$B:$B,'بيانات الطلاب'!$B110)","v":0},{"$f":"SUMIFS(المقبوضات!$I:$I,المقبوضات!$E:$E,'بيانات الطلاب'!K$2,المقبوضات!$B:$B,'بيانات الطلاب'!$B110)","v":0},{"$f":"Table1[[#This Row],[القسط دولار]]+Table1[[#This Row],[مدين دولار]]-Table1[[#This Row],[دائن دولار]]","v":0}]
["STD-109",null,null,null,null,{"$f":"SUMIFS(المقبوضات!$I:$I,المقبوضات!$E:$E,'بيانات الطلاب'!F$2,المقبوضات!$B:$B,'بيانات الطلاب'!$B111)","v":0},{"$f":"SUMIFS(المقبوضات!$I:$I,المقبوضات!$E:$E,'بيانات الطلاب'!G$2,المقبوضات!$B:$B,'بيانات الطلاب'!$B111)","v":0},{"$f":"Table1[[#This Row],[القسط لبناني]]+Table1[[#This Row],[مدين لبناني]]-Table1[[#This Row],[دائن لبناني]]","v":0},null,{"$f":"SUMIFS(المقبوضات!$I:$I,المقبوضات!$E:$E,'بيانات الطلاب'!J$2,المقبوضات!$B:$B,'بيانات الطلاب'!$B111)","v":0},{"$f":"SUMIFS(المقبوضات!$I:$I,المقبوضات!$E:$E,'بيانات الطلاب'!K$2,المقبوضات!$B:$B,'بيانات الطلاب'!$B111)","v":0},{"$f":"Table1[[#This Row],[القسط دولار]]+Table1[[#This Row],[مدين دولار]]-Table1[[#This Row],[دائن دولار]]","v":0}]
["STD-110",null,null,null,null,{"$f":"SUMIFS(المقبوضات!$I:$I,المقبوضات!$E:$E,'بيانات الطلاب'!F$2,المقبوضات!$B:$B,'بيانات الطلاب'!$B112)","v":0},{"$f":"SUMIFS(المقبوضات!$I:$I,المقبوضات!$E:$E,'بيانات الطلاب'!G$2,المقبوضات!$B:$B,'بيانات الطلاب'!$B112)","v":0},{"$f":"Table1[[#This Row],[القسط لبناني]]+Table1[[#This Row],[مدين لبناني]]-Table1[[#This Row],[دائن لبناني]]","v":0},null,{"$f":"SUMIFS(المقبوضات!$I:$I,المقبوضات!$E:$E,'بيانات الطلاب'!J$2,المقبوضات!$B:$B,'بيانات الطلاب'!$B112)","v":0},{"$f":"SUMIFS(المقبوضات!$I:$I,المقبوضات!$E:$E,'بيانات الطلاب'!K$2,المقبوضات!$B:$B,'بيانات الطلاب'!$B112)","v":0},{"$f":"Table1[[#This Row],[القسط دولار]]+Table1[[#This Row],[مدين دولار]]-Table1[[#This Row],[دائن دولار]]","v":0}]
["STD-111",null,null,null,null,{"$f":"SUMIFS(المقبوضات!$I:$I,المقبوضات!$E:$E,'بيانات الطلاب'!F$2,المقبوضات!$B:$B,'بيانات الطلاب'!$B113)","v":0},{"$f":"SUMIFS(المقبوضات!$I:$I,المقبوضات!$E:$E,'بيانات الطلاب'!G$2,المقبوضات!$B:$B,'بيانات الطلاب'!$B113)","v":0},{"$f":"Table1[[#This Row],[القسط لبناني]]+Table1[[#This Row],[مدين لبناني]]-Table1[[#This Row],[دائن لبناني]]","v":0},null,{"$f":"SUMIFS(المقبوضات!$I:$I,المقبوضات!$E:$E,'بيانات الطلاب'!J$2,المقبوضات!$B:$B,'بيانات الطلاب'!$B113)","v":0},{"$f":"SUMIFS(المقبوضات!$I:$I,المقبوضات!$E:$E,'بيانات الطلاب'!K$2,المقبوضات!$B:$B,'بيانات الطلاب'!$B113)","v":0},{"$f":"Table1[[#This Row],[القسط دولار]]+Table1[[#This Row],[مدين دولار]]-Table1[[#This Row],[دائن دولار]]","v":0}]
["STD-112",null,null,null,null,{"$f":"SUMIFS(المقبوضات!$I:$I,المقبوضات!$E:$E,'بيانات الطلاب'!F$2,المقبوضات!$B:$B,'بيانات الطلاب'!$B114)","v":0},{"$f":"SUMIFS(المقبوضات!$I:$I,المقبوضات!$E:$E,'بيانات الطلاب'!G$2,المقبوضات!$B:$B,'بيانات الطلاب'!$B114)","v":0},{"$f":"Table1[[#This Row],[القسط لبناني]]+Table1[[#This Row],[مدين لبناني]]-Table1[[#This Row],[دائن لبناني]]","v":0},null,{"$f":"SUMIFS(المقبوضات!$I:$I,المقبوضات!$E:$E,'بيانات الطلاب'!J$2,المقبوضات!$B:$B,'بيانات الطلاب'!$B114)","v":0},{"$f":"SUMIFS(المقبوضات!$I:$I,المقبوضات!$E:$E,'بيانات الطلاب'!K$2,المقبوضات!$B:$B,'بيانات الطلاب'!$B114)","v":0},{"$f":"Table1[[#This Row],[القسط دولار]]+Table1[[#This Row],[مدين دولار]]-Table1[[#This Row],[دائن دولار]]","v":0}]
["STD-113",null,null,null,null,{"$f":"SUMIFS(المقبوضات!$I:$I,المقبوضات!$E:$E,'بيانات الطلاب'!F$2,المقبوضات!$B:$B,'بيانات الطلاب'!$B115)","v":0},{"$f":"SUMIFS(المقبوضات!$I:$I,المقبوضات!$E:$E,'بيانات الطلاب'!G$2,المقبوضات!$B:$B,'بيانات الطلاب'!$B115)","v":0},{"$f":"Table1[[#This Row],[القسط لبناني]]+Table1[[#This Row],[مدين لبناني]]-Table1[[#This Row],[دائن لبناني]]","v":0},null,{"$f":"SUMIFS(المقبوضات!$I:$I,المقبوضات!$E:$E,'بيانات الطلاب'!J$2,المقبوضات!$B:$B,'بيانات الطلاب'!$B115)","v":0},{"$f":"SUMIFS(المقبوضات!$I:$I,المقبوضات!$E:$E,'بيانات الطلاب'!K$2,المقبوضات!$B:$B,'بيانات الطلاب'!$B115)","v":0},{"$f":"Table1[[#This Row],[القسط دولار]]+Table1[[#This Row],[مدين دولار]]-Table1[[#This Row],[دائن دولار]]","v":0}]
[null,"Total",null,null,{"$f":"SUBTOTAL(109,Table1[القسط لبناني])","v":20000000},{"$f":"SUBTOTAL(109,Table1[مدين لبناني])","v":0},{"$f":"SUBTOTAL(109,Table1[دائن لبناني])","v":5000000},{"$f":"SUBTOTAL(109,Table1[الرصيد لبناني])","v":15000000}]

{"sheet":"المقبوضات","index":2,"n_rows":54,"n_cols":9,"rows_kept":54,"cut":false,"hidden":false,"merged":[[0,0,0,8]]}
["مقبوضات الطلاب"]
["رمز الطالب","إسم الطالب","التاريخ","نوع المستند","التأثير","رقم الإيصال","البيـــان","العملة","القيمة"]
[{"$f":"_xlfn.XLOOKUP(Table2[[#This Row],[إسم الطالب]],Table1[إسم الطالب],Table1[كود الطالب])","v":"STD-1"},"باسل محمد إبراهيم","2023-09-30","إيصال قبض","دائن دولار",1000,"دفعة من القسط المدرسي","دولار",100]
[{"$f":"_xlfn.XLOOKUP(Table2[[#This Row],[إسم الطالب]],Table1[إسم الطالب],Table1[كود الطالب])","v":"STD-2"},"تيا محمد إبراهيم","2023-09-30","إيصال قبض","دائن لبناني",1001,"دفعة من القسط المدرسي","لبناني",2000000]
[{"$f":"_xlfn.XLOOKUP(Table2[[#This Row],[إسم الطالب]],Table1[إسم الطالب],Table1[كود الطالب])","v":"STD-1"},"باسل محمد إبراهيم","2023-10-01","إيصال قبض","دائن لبناني",1002,"دفعة من القسط المدرسي","لبناني",3000000]
[{"$f":"_xlfn.XLOOKUP(Table2[[#This Row],[إسم الطالب]],Table1[إسم الطالب],Table1[كود الطالب])","v":"STD-2"},"تيا محمد إبراهيم","2023-10-02","إيصال قبض","دائن دولار",1003,"دفعة من القسط المدرسي","دولار",200]
[{"$f":"_xlfn.XLOOKUP(Table2[[#This Row],[إسم الطالب]],Table1[إسم الطالب],Table1[كود الطالب])","v":"STD-3"}]
[{"$f":"_xlfn.XLOOKUP(Table2[[#This Row],[إسم الطالب]],Table1[إسم الطالب],Table1[كود الطالب])","v":"STD-3"}]
[{"$f":"_xlfn.XLOOKUP(Table2[[#This Row],[إسم الطالب]],Table1[إسم الطالب],Table1[كود الطالب])","v":"STD-3"}]
[{"$f":"_xlfn.XLOOKUP(Table2[[#This Row],[إسم الطالب]],Table1[إسم الطالب],Table1[كود الطالب])","v":"STD-3"}]
[{"$f":"_xlfn.XLOOKUP(Table2[[#This Row],[إسم الطالب]],Table1[إسم الطالب],Table1[كود الطالب])","v":"STD-3"}]
[{"$f":"_xlfn.XLOOKUP(Table2[[#This Row],[إسم الطالب]],Table1[إسم الطالب],Table1[كود الطالب])","v":"STD-3"}]
[{"$f":"_xlfn.XLOOKUP(Table2[[#This Row],[إسم الطالب]],Table1[إسم الطالب],Table1[كود الطالب])","v":"STD-3"}]
[{"$f":"_xlfn.XLOOKUP(Table2[[#This Row],[إسم الطالب]],Table1[إسم الطالب],Table1[كود الطالب])","v":"STD-3"}]
[{"$f":"_xlfn.XLOOKUP(Table2[[#This Row],[إسم الطالب]],Table1[إسم الطالب],Table1[كود الطالب])","v":"STD-3"}]
[{"$f":"_xlfn.XLOOKUP(Table2[[#This Row],[إسم الطالب]],Table1[إسم الطالب],Table1[كود الطالب])","v":"STD-3"}]
[{"$f":"_xlfn.XLOOKUP(Table2[[#This Row],[إسم الطالب]],Table1[إسم الطالب],Table1[كود الطالب])","v":"STD-3"}]
[{"$f":"_xlfn.XLOOKUP(Table2[[#This Row],[إسم الطالب]],Table1[إسم الطالب],Table1[كود الطالب])","v":"STD-3"}]
[{"$f":"_xlfn.XLOOKUP(Table2[[#This Row],[إسم الطالب]],Table1[إسم الطالب],Table1[كود الطالب])","v":"STD-3"}]
[{"$f":"_xlfn.XLOOKUP(Table2[[#This Row],[إسم الطالب]],Table1[إسم الطالب],Table1[كود الطالب])","v":"STD-3"}]
[{"$f":"_xlfn.XLOOKUP(Table2[[#This Row],[إسم الطالب]],Table1[إسم الطالب],Table1[كود الطالب])","v":"STD-3"}]
[{"$f":"_xlfn.XLOOKUP(Table2[[#This Row],[إسم الطالب]],Table1[إسم الطالب],Table1[كود الطالب])","v":"STD-3"}]
[{"$f":"_xlfn.XLOOKUP(Table2[[#This Row],[إسم الطالب]],Table1[إسم الطالب],Table1[كود الطالب])","v":"STD-3"}]
[{"$f":"_xlfn.XLOOKUP(Table2[[#This Row],[إسم الطالب]],Table1[إسم الطالب],Table1[كود الطالب])","v":"STD-3"}]
[{"$f":"_xlfn.XLOOKUP(Table2[[#This Row],[إسم الطالب]],Table1[إسم الطالب],Table1[كود الطالب])","v":"STD-3"}]
[{"$f":"_xlfn.XLOOKUP(Table2[[#This Row],[إسم الطالب]],Table1[إسم الطالب],Table1[كود الطالب])","v":"STD-3"}]
[{"$f":"_xlfn.XLOOKUP(Table2[[#This Row],[إسم الطالب]],Table1[إسم الطالب],Table1[كود الطالب])","v":"STD-3"}]
[{"$f":"_xlfn.XLOOKUP(Table2[[#This Row],[إسم الطالب]],Table1[إسم الطالب],Table1[كود الطالب])","v":"STD-3"}]
[{"$f":"_xlfn.XLOOKUP(Table2[[#This Row],[إسم الطالب]],Table1[إسم الطالب],Table1[كود الطالب])","v":"STD-3"}]
[{"$f":"_xlfn.XLOOKUP(Table2[[#This Row],[إسم الطالب]],Table1[إسم الطالب],Table1[كود الطالب])","v":"STD-3"}]
[{"$f":"_xlfn.XLOOKUP(Table2[[#This Row],[إسم الطالب]],Table1[إسم الطالب],Table1[كود الطالب])","v":"STD-3"}]
[{"$f":"_xlfn.XLOOKUP(Table2[[#This Row],[إسم الطالب]],Table1[إسم الطالب],Table1[كود الطالب])","v":"STD-3"}]
[{"$f":"_xlfn.XLOOKUP(Table2[[#This Row],[إسم الطالب]],Table1[إسم الطالب],Table1[كود الطالب])","v":"STD-3"}]
[{"$f":"_xlfn.XLOOKUP(Table2[[#This Row],[إسم الطالب]],Table1[إسم الطالب],Table1[كود الطالب])","v":"STD-3"}]
[{"$f":"_xlfn.XLOOKUP(Table2[[#This Row],[إسم الطالب]],Table1[إسم الطالب],Table1[كود الطالب])","v":"STD-3"}]
[{"$f":"_xlfn.XLOOKUP(Table2[[#This Row],[إسم الطالب]],Table1[إسم الطالب],Table1[كود الطالب])","v":"STD-3"}]
[{"$f":"_xlfn.XLOOKUP(Table2[[#This Row],[إسم الطالب]],Table1[إسم الطالب],Table1[كود الطالب])","v":"STD-3"}]
[{"$f":"_xlfn.XLOOKUP(Table2[[#This Row],[إسم الطالب]],Table1[إسم الطالب],Table1[كود الطالب])","v":"STD-3"}]
[{"$f":"_xlfn.XLOOKUP(Table2[[#This Row],[إسم الطالب]],Table1[إسم الطالب],Table1[كود الطالب])","v":"STD-3"}]
[{"$f":"_xlfn.XLOOKUP(Table2[[#This Row],[إسم الطالب]],Table1[إسم الطالب],Table1[كود الطالب])","v":"STD-3"}]
[{"$f":"_xlfn.XLOOKUP(Table2[[#This Row],[إسم الطالب]],Table1[إسم الطالب],Table1[كود الطالب])","v":"STD-3"}]
[{"$f":"_xlfn.XLOOKUP(Table2[[#This Row],[إسم الطالب]],Table1[إسم الطالب],Table1[كود الطالب])","v":"STD-3"}]
[{"$f":"_xlfn.XLOOKUP(Table2[[#This Row],[إسم الطالب]],Table1[إسم الطالب],Table1[كود الطالب])","v":"STD-3"}]
[{"$f":"_xlfn.XLOOKUP(Table2[[#This Row],[إسم الطالب]],Table1[إسم الطالب],Table1[كود الطالب])","v":"STD-3"}]
[{"$f":"_xlfn.XLOOKUP(Table2[[#This Row],[إسم الطالب]],Table1[إسم الطالب],Table1[كود الطالب])","v":"STD-3"}]
[{"$f":"_xlfn.XLOOKUP(Table2[[#This Row],[إسم الطالب]],Table1[إسم الطالب],Table1[كود الطالب])","v":"STD-3"}]
[{"$f":"_xlfn.XLOOKUP(Table2[[#This Row],[إسم الطالب]],Table1[إسم الطالب],Table1[كود الطالب])","v":"STD-3"}]
[{"$f":"_xlfn.XLOOKUP(Table2[[#This Row],[إسم الطالب]],Table1[إسم الطالب],Table1[كود الطالب])","v":"STD-3"}]
[{"$f":"_xlfn.XLOOKUP(Table2[[#This Row],[إسم الطالب]],Table1[إسم الطالب],Table1[كود الطالب])","v":"STD-3"}]
[{"$f":"_xlfn.XLOOKUP(Table2[[#This Row],[إسم الطالب]],Table1[إسم الطالب],Table1[كود الطالب])","v":"STD-3"}]
[{"$f":"_xlfn.XLOOKUP(Table2[[#This Row],[إسم الطالب]],Table1[إسم الطالب],Table1[كود الطالب])","v":"STD-3"}]
[{"$f":"_xlfn.XLOOKUP(Table2[[#This Row],[إسم الطالب]],Table1[إسم الطالب],Table1[كود الطالب])","v":"STD-3"}]
[{"$f":"_xlfn.XLOOKUP(Table2[[#This Row],[إسم الطالب]],Table1[إسم الطالب],Table1[كود الطالب])","v":"STD-3"}]
[{"$f":"_xlfn.XLOOKUP(Table2[[#This Row],[إسم الطالب]],Table1[إسم الطالب],Table1[كود الطالب])","v":"STD-3"}]

{"sheet":"كشف حساب طالب دولار","index":3,"n_rows":6,"n_cols":8,"rows_kept":6,"cut":false,"hidden":false,"merged":[]}
["إسم الطالب","التاريخ","نوع المستند","القسط دولار","مدين دولار","دائن دولار","الحالي"]
["تيا محمد إبراهيم",null,null,{"$f":"VLOOKUP($A$2,'بيانات الطلاب'!$B:$L,8,FALSE)","v":300},{"$f":"VLOOKUP($A$2,'بيانات الطلاب'!$B:$L,9,FALSE)","v":0},{"$f":"VLOOKUP($A$2,'بيانات الطلاب'!$B:$L,10,FALSE)","v":200},{"$f":"VLOOKUP($A$2,'بيانات الطلاب'!$B:$L,11,FALSE)","v":100}]
[]
["إسم الطالب","التاريخ","نوع المستند","التأثير","رقم الإيصال","البيـــان","العملة","القيمة"]
["تيا محمد إبراهيم","2023-09-30","إيصال قبض","دائن لبناني",1001,"دفعة من القسط المدرسي","لبناني",2000000]
["تيا محمد إبراهيم","2023-10-02","إيصال قبض","دائن دولار",1003,"دفعة من القسط المدرسي","دولار",200]

{"sheet":"كشف حساب طالب لبناني","index":4,"n_rows":6,"n_cols":8,"rows_kept":6,"cut":false,"hidden":false,"merged":[]}
["إسم الطالب","التاريخ","نوع المستند","القسط دولار","مدين دولار","دائن دولار","الحالي"]
["باسل محمد إبراهيم",null,null,{"$f":"VLOOKUP($A$2,'بيانات الطلاب'!$B:$L,8,FALSE)","v":300},{"$f":"VLOOKUP($A$2,'بيانات الطلاب'!$B:$L,9,FALSE)","v":0},{"$f":"VLOOKUP($A$2,'بيانات الطلاب'!$B:$L,10,FALSE)","v":100},{"$f":"VLOOKUP($A$2,'بيانات الطلاب'!$B:$L,11,FALSE)","v":200}]
[]
["إسم الطالب","التاريخ","نوع المستند","التأثير","رقم الإيصال","البيـــان","العملة","القيمة"]
["باسل محمد إبراهيم","2023-09-30","إيصال قبض","دائن دولار",1000,"دفعة من القسط المدرسي","دولار",100]
["باسل محمد إبراهيم","2023-10-01","إيصال قبض","دائن لبناني",1002,"دفعة من القسط المدرسي","لبناني",3000000]